Workbook

Sheet Инструкция
I2: ="Код шаблона: " & GetCode() -> Код шаблона: FORMA1.BUHG.2011
I3: ="Версия " & GetVersion() -> Версия 2.1
B4: Инструкция по заполнению шаблона
C7: Технические требования: • макросы во время работы должны быть включены
C8: • на рабочем месте должен быть установлен MS Office 2003, 2007, 2010 x86 с полной версией MS Excel
C9: • макросы во время работы должны быть включены
C10: • для корректной работы шаблона требуется выбрать низкий уровень безопасности (В меню MS Excel 2003: Сервис → Макрос → Безопасность → выбрать нижний пункт «Низкая безопасность» → «OK») (В MS Excel 2007 после открытия файла шаблона нажать на кнопку «Параметры…» → «Предупреждение системы безопасности» → «Включить это содержимое» → «OK»)
D11: Цвета ячеек:
D12: ● | E12: Голубой – ячейки, обязательные для заполнения;
D13: ● | E13: Желтый – ячейки, предназначенные для заполнения;
D14: ● | E14: Зеленый – ячейки с формулами/константами или заполняемые автоматически (например, при выборе организации из реестра или выборе даты).
D16: Пояснение к заполнению (необходимо нажать один раз).
C18: Шаблон может быть сохранен на любом этапе заполнения!
C19: • При сохранении шаблона осуществляется проверка на наличие и корректность (например, КПП – 9 цифр) обязательных параметров на листах.
C20: • Если какая-то ячейка не удовлетворяет условию проверки, на лист «Проверка» добавляется гиперссылка на данную ячейку и причина, по которой шаблон не будет загружен в хранилище данных.
C21: • В колонке «Статус ошибки» для каждого сообщения возможны 2 значения: ошибка и предупреждение.
C22: • При наличии сообщений со статусом «Ошибка» шаблон будет отклонён системой, сообщения со статусом «Предупреждение» носят информационный характер, и такой шаблон будет принят системой.
C23: Организационно-технические консультации:
C24: ФИО:
C25: телефон:
C26: e-mail:
C27: WEB-сайт:
C28: Комментарий
C29: Дистрибутивы: | E29: Для устранения проблем с MS Excel (например, "Compile error in hidden module") воспользуйтесь пакетами библиотек:
C30: Дистрибутивы (ссылка): | E30: http://eias.ru/?page=show_distrs
C32: Консультации по методологии заполнения форм:
C33: ФИО:
C34: телефон:
C35: e-mail:
C36: WEB-сайт: | E36: http://eias.ru/
C37: Комментарий
B40: Список сокращений
C43: Сокращение | E43: Расшифровка | F43: Данные
C44: 1 | E44: 2 | F44: 3
C45: ОКПО | E45: Общероссийский классификатор предприятий и организаций
C46: ОКВЭД | E46: Общероссийский классификатор видов экономической деятельности | F46: http://www.gmcgks.ru/new_page_96.htm
C47: ОКАТО | E47: Общероссийский классификатор объектов административно-территориального деления | F47: http://www.gmcgks.ru/new_page_87.htm
C48: ОКОГУ | E48: Общероссийский классификатор органов государственной власти и управления | F48: http://www.gmcgks.ru/new_page_77.htm
C49: ОКОПФ | E49: Общероссийский классификатор организационно-правовых форм | F49: http://www.gmcgks.ru/new_page_95.htm
C50: ОКФС | E50: Общероссийский классификатор форм собственности | F50: http://www.gmcgks.ru/new_page_94.htm
C51: ОКУД | E51: Общероссийский классификатор управленческой документации | F51: http://www.gmcgks.ru/new_page_80.htm
C52: ОКЕИ | E52: Общероссийский классификатор единиц измерения | F52: http://www.gmcgks.ru/new_page_83.htm
C53: ОКТМО | E53: Общероссийский классификатор территорий муниципальных образований | F53: http://www.gks.ru/metod/classifiers.html

Sheet Обновление
O2: =version -> Версия 2.1
C3: Инструкция по обновлению шаблона
C24: Если компьютер имеет подключение к Интернет, можно автоматически проверять наличие доступных обновлений. Выберите способ оповещения о наличии обновлений для шаблона:

Sheet Лог обновления (hidden)
A1: Дата/Время | B1: Сообщение | C1: Статус
A2: 2/19/2013 12:59:32 PM | B2: Проверка доступных обновлений... | C2: Информация
A3: 2/19/2013 12:59:43 PM | B3: Версия шаблона 2.1 актуальна, обновление не требуется | C3: Информация

Sheet Выбор субъекта РФ (hidden)
B1: 27 | C1: 15187457 | G1: 0
B2: Красноярский край | H2: 0

Sheet Титульный
K2: =code -> Код шаблона: FORMA1.BUHG.2011
J3: =version -> Версия 2.1
B4: Бухгалтерский баланс
B6: Приложение к Приказу Минфина РФ от 02.07.2010 № 66н (в ред. Приказа Минфина РФ от 05.10.2011 N 124н)
C8: Создать печатную форму
C9: Регион РФ | D9: Красноярский край
C11: Отчётный период
C12: Год | D12: 2012
C13: Квартал (с нарастающим итогом) | D13: год
C14: Отчётная дата | D14: 31.12.2012
C16: Признак филиала | D16: нет
H18: Форма №1 по ОКУД | I18: 0710001
C19: Дата последнего обновления реестра организаций: 19.02.2013 13:00:51 | H19: Дата (год,месяц,число) | I19: 31.12.2012
C20: Организация: | D20: ООО "Тепловик 2" | H20: Код* по ОКПО | I20: 78453553
C21: Наименование филиала:
C22: ИНН: | D22: 2413006167 | H22: Является ли организация субъектом малого предпринимательства | I22: да
C23: КПП: | D23: 241301001 | H23: =IF(god="","Указанный", god)&" год является для организации" -> 2012 год является для организации | I23: третьим или последующим отчетным годом
C24: Вид деятельности: | D24: производство (некомбинированная выработка) + передача + сбыт | H24: Код* по ОКВЭД | I24: 40.30.14
C25: Организационно-правовая форма/форма собственности: | D25: 65 | E25: / | F25: 49 | H25: Код* по ОКОПФ/ОКФС | I25: 65 | J25: 49
C26: Единица измерения | D26: тыс.руб. | H26: Код* по ОКЕИ | I26: 384
C29: Дата последнего обновления реестра МР/МО: 19.02.2013 13:00:59
C30: Муниципальный район | D30: Ермаковский муниципальный район
C32: Муниципальное образование | D32: Ермаковское
C34: ОКТМО | D34: 04616410
C36: Адрес организации
C37: Юридический адрес: | D37: 662820, Красноярский край, Ермаковский район, с. Ермаковское, ул. Ленина, д. 82, к. а
C38: Почтовый адрес: | D38: 662820, Красноярский край, Ермаковский район, с. Ермаковское, пл. Победы, д. 15
C40: Руководитель
C41: Фамилия, имя, отчество: | D41: Почекутов Сергей Михайлович
C42: (код) номер телефона: | D42: (39138) 2-40-47 | H42: * Расшифровки всех сокращений и ссылки приведены на листе "Инструкция"
C44: Главный бухгалтер
C45: Фамилия, имя, отчество: | D45: Родькина Ирина Ивановна
C46: (код) номер телефона: | D46: (39138) 2-40-47
C48: Должностное лицо, ответственное за составление формы
C49: Фамилия, имя, отчество: | D49: Родькина Ирина Ивановна
C50: Должность: | D50: главный бухгалтер
C51: (код) номер телефона: | D51: (39138) 2-40-47
C52: e-mail: | D52: rodkinairusa-62@mail.ru
C54: Дата составления документа | D54: =TODAY() -> 2013-02-19

Sheet Актив
A2: Амурская область
R7: Форма 0710001 с. 1
D8: АКТИВ
Q10: =IF(unit="","",unit) -> тыс.руб.
E11: № п/п | F11: Актив | G11: Код показателя | H11: ="На " & IF(report_date=""," отчётную дату отчётного года",report_date&" г.") -> На 31.12.2012 г. | K11: ="На 31 декабря " & IF(god=""," предыдущего года",god-1&" г.") -> На 31 декабря 2011 г. | N11: ="На 31 декабря " & IF(god=""," года, предшествующего предыдущему",god-2&" г.") -> На 31 декабря 2010 г. | Q11: Пояснения
E12: 1 | F12: 2 | G12: 3 | H12: 4 | K12: 5 | N12: 6 | Q12: 7
E13: 1 | F13: I. ВНЕОБОРОТНЫЕ АКТИВЫ
B14: 1110 | E14: 1.1 | F14: Нематериальные активы | G14: 1110 | I14: 0 | L14: 0 | O14: 0
B15: 1120 | E15: 1.2 | F15: Результаты исследований и разработок | G15: 1120 | I15: 0 | L15: 0 | O15: 0
B16: 1180 | E16: 1.3 | F16: Нематериальные поисковые активы | G16: 1130 | I16: 0 | L16: 0 | O16: 0
B17: 1190 | E17: 1.4 | F17: Материальные поисковые активы | G17: 1140 | I17: 0 | L17: 0 | O17: 0
B18: 1130 | E18: 1.5 | F18: Основные средства | G18: 1150 | I18: 478 | L18: 391 | O18: 563
B19: 1140 | E19: 1.6 | F19: Доходные вложения в материальные ценности | G19: 1160 | I19: 0 | L19: 0 | O19: 0
B20: 1150 | E20: 1.7 | F20: Финансовые вложения | G20: 1170 | I20: 0 | L20: 0 | O20: 0
B21: 1160 | E21: 1.8 | F21: Отложенные налоговые активы | G21: 1180 | I21: 0 | L21: 0 | O21: 0
B22: 1170 | E22: 1.9 | F22: Прочие внеоборотные активы | G22: 1190 | I22: 0 | L22: 0 | O22: 0
B23: 1100 | E23: 1.10 | F23: ИТОГО по разделу I | G23: 1100 | I23: 478 | L23: 391 | O23: 563
E24: 2 | F24: II. ОБОРОТНЫЕ АКТИВЫ
E25: 2.1 | F25: Запасы | G25: 1210 | I25: 1864 | L25: 1132 | O25: 1120
E26: 2.2 | F26: Налог на добавленную стоимость по приобретенным ценностям | G26: 1220 | I26: 0 | L26: 0 | O26: 0
E27: 2.3 | F27: Дебиторская задолженность | G27: 1230 | I27: 3430 | L27: 4092 | O27: 5360
E28: 2.4 | F28: Финансовые вложения (за исключением денежных эквивалентов) | G28: 1240 | I28: 0 | L28: 0 | O28: 0
E29: 2.5 | F29: Денежные средства и денежные эквиваленты | G29: 1250 | I29: 1149 | L29: 34 | O29: 11
E30: 2.6 | F30: Прочие оборотные активы | G30: 1260 | I30: 7 | L30: 0 | O30: 0
E31: 2.7 | F31: ИТОГО по разделу II | G31: 1200 | I31: 6450 | L31: 5258 | O31: 6491
E32: 3 | F32: БАЛАНС | G32: 1600 | I32: 6928 | L32: 5649 | O32: 7054

Sheet Пассив
A2: Амурская область
R7: Форма 0710001 с. 2
D8: ПАССИВ
Q10: =IF(unit="","",unit) -> тыс.руб.
E11: № п/п | F11: Пассив | G11: Код показателя | H11: ="На " & IF(report_date=""," отчётную дату отчётного года",report_date&" г.") -> На 31.12.2012 г. | K11: ="На 31 декабря " & IF(god=""," предыдущего года",god-1&" г.") -> На 31 декабря 2011 г. | N11: ="На 31 декабря " & IF(god=""," года, предшествующего предыдущему",god-2&" г.") -> На 31 декабря 2010 г. | Q11: Пояснения
E12: 1 | F12: 2 | G12: 3 | H12: 4 | K12: 5 | N12: 6 | Q12: 7
E13: 1 | F13: III. КАПИТАЛ И РЕЗЕРВЫ
E14: 1.1 | F14: Уставный капитал (складочный капитал, уставный фонд, вклады товарищей) | G14: 1310 | I14: 10 | L14: 10 | O14: 10
E15: 1.2 | F15: Собственные акции, выкупленные у акционеров | G15: 1320 | H15: ( | I15: 0 | J15: ) | K15: ( | L15: 0 | M15: ) | N15: ( | O15: 0 | P15: )
E16: 1.3 | F16: Переоценка внеоборотных активов | G16: 1340 | I16: 0 | L16: 0 | O16: 0
E17: 1.4 | F17: Добавочный капитал (без переоценки) | G17: 1350 | I17: 0 | L17: 0 | O17: 0
E18: 1.5 | F18: Резервный капитал | G18: 1360 | I18: 0 | L18: 0 | O18: 0
E19: 1.6 | F19: Нераспределенная прибыль (непокрытый убыток) | G19: 1370 | I19: 4758 | L19: 5037 | O19: 5805
E20: 1.7 | F20: ИТОГО по разделу III | G20: 1300 | I20: 4768 | L20: 5047 | O20: 5815
E21: 2 | F21: IV. ДОЛГОСРОЧНЫЕ ОБЯЗАТЕЛЬСТВА
E22: 2.1 | F22: Заемные средства | G22: 1410 | I22: 0 | L22: 0 | O22: 0
E23: 2.2 | F23: Отложенные налоговые обязательства | G23: 1420 | I23: 0 | L23: 0 | O23: 0
E24: 2.3 | F24: Оценочные обязательства | G24: 1430 | I24: 0 | L24: 0 | O24: 0
E25: 2.3 | F25: Прочие обязательства | G25: 1450 | I25: 0 | L25: 0 | O25: 0
E26: 2.4 | F26: ИТОГО по разделу IV | G26: 1400 | I26: 0 | L26: 0 | O26: 0
E27: 3 | F27: V. КРАТКОСРОЧНЫЕ ОБЯЗАТЕЛЬСТВА
E28: 3.1 | F28: Заемные средства | G28: 1510 | I28: 0 | L28: 0 | O28: 0
E29: 3.2 | F29: Кредиторская задолженность | G29: 1520 | I29: 2149 | L29: 600 | O29: 1239
E30: 3.3 | F30: Доходы будущих периодов | G30: 1530 | I30: 0 | L30: 0 | O30: 0
E31: 3.4 | F31: Оценочные обязательства | G31: 1540 | I31: 0 | L31: 0 | O31: 0
E32: 3.5 | F32: Прочие обязательства | G32: 1550 | I32: 11 | L32: 2 | O32: 0
E33: 3.6 | F33: ИТОГО по разделу V | G33: 1500 | I33: 2160 | L33: 602 | O33: 1239
E34: 4 | F34: БАЛАНС | G34: 1700 | I34: 6928 | L34: 5649 | O34: 7054

Sheet Расшифровка показателей
A2: Амурская область
Q7: Форма 0710001 с. 3
D8: Расшифровка отдельных показателей бухгалтерского баланса
P10: =IF(unit="","",unit) -> тыс.руб.
E11: № п/п | F11: Наименование | G11: Код показателя | H11: ="На " & IF(report_date=""," отчётную дату отчётного года",report_date&" г.") -> На 31.12.2012 г. | K11: ="На 31 декабря " & IF(god=""," предыдущего года",god-1&" г.") -> На 31 декабря 2011 г. | N11: ="На 31 декабря " & IF(god=""," года, предшествующего предыдущему",god-2&" г.") -> На 31 декабря 2010 г.
E12: 1 | F12: 2 | G12: 3 | H12: 4 | K12: 5 | N12: 6
E13: 1 | F13: Нематериальные активы (стр.1110), в том числе: | H13: =IF(Актив!H14="(","(","") ->  | I13: =Актив!I14 -> 0 | J13: =IF(H13="(",")","") ->  | K13: =IF(Актив!K14="(","(","") ->  | L13: =Актив!L14 -> 0 | M13: =IF(K13="(",")","") ->  | N13: =IF(Актив!N14="(","(","") ->  | O13: =Актив!O14 -> 0 | P13: =IF(N13="(",")","") -> 
E14: 1.1 | G14: 11101
E15: 1.2 | G15: 11102
E16: 1.3 | G16: 11103
F17: Добавить строку
E18: 2 | F18: Результаты исследований и разработок (стр.1120), в том числе: | H18: =IF(Актив!H15="(","(","") ->  | I18: =Актив!I15 -> 0 | J18: =IF(H18="(",")","") ->  | K18: =IF(Актив!K15="(","(","") ->  | L18: =Актив!L15 -> 0 | M18: =IF(K18="(",")","") ->  | N18: =IF(Актив!N15="(","(","") ->  | O18: =Актив!O15 -> 0 | P18: =IF(N18="(",")","") -> 
E19: 2.1 | G19: 11201
E20: 2.2 | G20: 11202
F21: Добавить строку
E22: 3 | F22: ="Нематериальные поисковые активы (стр."&Актив!$G$16&"), в том числе:" -> Нематериальные поисковые активы (стр.1130), в том числе: | H22: =IF(Актив!H$16="(","(","") ->  | I22: =Актив!I$16 -> 0 | J22: =IF(H22="(",")","") ->  | K22: =IF(Актив!K$16="(","(","") ->  | L22: =Актив!L$16 -> 0 | M22: =IF(K22="(",")","") ->  | N22: =IF(Актив!N$16="(","(","") ->  | O22: =Актив!O$16 -> 0 | P22: =IF(N22="(",")","") -> 
E23: 3.1 | G23: =Актив!$G$16&"1" -> 11301
E24: 3.2 | G24: =Актив!$G$16&"2" -> 11302
F25: Добавить строку
E26: 4 | F26: ="Материальные поисковые активы (стр."&Актив!$G$17&"), в том числе:" -> Материальные поисковые активы (стр.1140), в том числе: | H26: =IF(Актив!H$17="(","(","") ->  | I26: =Актив!I$17 -> 0 | J26: =IF(H26="(",")","") ->  | K26: =IF(Актив!K$17="(","(","") ->  | L26: =Актив!L$17 -> 0 | M26: =IF(K26="(",")","") ->  | N26: =IF(Актив!N$17="(","(","") ->  | O26: =Актив!O$17 -> 0 | P26: =IF(N26="(",")","") -> 
E27: 4.1 | G27: =Актив!$G$17&"1" -> 11401
E28: 4.2 | G28: =Актив!$G$17&"2" -> 11402
F29: Добавить строку
E30: 5 | F30: ="Основные средства (стр."&Актив!$G$18&"), в том числе:" -> Основные средства (стр.1150), в том числе: | H30: =IF(Актив!H18="(","(","") ->  | I30: =Актив!I18 -> 478 | J30: =IF(H30="(",")","") ->  | K30: =IF(Актив!K18="(","(","") ->  | L30: =Актив!L18 -> 391 | M30: =IF(K30="(",")","") ->  | N30: =IF(Актив!N18="(","(","") ->  | O30: =Актив!O18 -> 563 | P30: =IF(N30="(",")","") -> 
E31: 5.1 | F31: машины и оборудование | G31: =Актив!$G$18&"1" -> 11501 | I31: 478 | L31: 391 | O31: 563
E32: 5.2 | F32: нет | G32: =Актив!$G$18&"2" -> 11502 | I32: 0 | L32: 0 | O32: 0
E33: 5.3 | F33: нет | G33: =Актив!$G$18&"3" -> 11503 | I33: 0 | L33: 0 | O33: 0
F34: Добавить строку
E35: 6 | F35: ="Доходные вложения (стр."&Актив!$G$19&"), в том числе:" -> Доходные вложения (стр.1160), в том числе: | H35: =IF(Актив!H19="(","(","") ->  | I35: =Актив!I19 -> 0 | J35: =IF(H35="(",")","") ->  | K35: =IF(Актив!K19="(","(","") ->  | L35: =Актив!L19 -> 0 | M35: =IF(K35="(",")","") ->  | N35: =IF(Актив!N19="(","(","") ->  | O35: =Актив!O19 -> 0 | P35: =IF(N35="(",")","") -> 
E36: 6.1 | G36: =Актив!$G$19&"1" -> 11601
E37: 6.2 | G37: =Актив!$G$19&"2" -> 11602
F38: Добавить строку
E39: 7 | F39: ="Финансовые вложения (стр."&Актив!$G$20&"), в том числе:" -> Финансовые вложения (стр.1170), в том числе: | H39: =IF(Актив!H20="(","(","") ->  | I39: =Актив!I20 -> 0 | J39: =IF(H39="(",")","") ->  | K39: =IF(Актив!K20="(","(","") ->  | L39: =Актив!L20 -> 0 | M39: =IF(K39="(",")","") ->  | N39: =IF(Актив!N20="(","(","") ->  | O39: =Актив!O20 -> 0 | P39: =IF(N39="(",")","") -> 
E40: 7.1 | G40: =Актив!$G$20&"1" -> 11701
E41: 7.2 | G41: =Актив!$G$20&"2" -> 11702
E42: 7.3 | G42: =Актив!$G$20&"3" -> 11703
E43: 7.4 | G43: =Актив!$G$20&"4" -> 11704
F44: Добавить строку
E45: 8 | F45: ="Отложенные налоговые активы (стр."&Актив!$G$21&"), в том числе:" -> Отложенные налоговые активы (стр.1180), в том числе: | H45: =IF(Актив!H21="(","(","") ->  | I45: =Актив!I21 -> 0 | J45: =IF(H45="(",")","") ->  | K45: =IF(Актив!K21="(","(","") ->  | L45: =Актив!L21 -> 0 | M45: =IF(K45="(",")","") ->  | N45: =IF(Актив!N21="(","(","") ->  | O45: =Актив!O21 -> 0 | P45: =IF(N45="(",")","") -> 
E46: 8.1 | G46: =Актив!$G$21&"1" -> 11801
F47: Добавить строку
E48: 9 | F48: ="Вписываемые показатели (стр."&IF(Актив!$G$21="1180","1185","1165")&"), в том числе:" -> Вписываемые показатели (стр.1185), в том числе: | H48: =IF((SUMIF(OFFSET(SUM_1165_1,0,-1),"",SUM_1165_1)-SUMIF(OFFSET(SUM_1165_1,0,-1),"(",SUM_1165_1))<0,"(","") ->  | I48: =ABS(SUMIF(OFFSET(SUM_1165_1,0,-1),"",SUM_1165_1)-SUMIF(OFFSET(SUM_1165_1,0,-1),"(",SUM_1165_1)) -> 0 | J48: =IF(H48="(",")","") ->  | K48: =IF((SUMIF(OFFSET(SUM_1165_2,0,-1),"",SUM_1165_2)-SUMIF(OFFSET(SUM_1165_2,0,-1),"(",SUM_1165_2))<0,"(","") ->  | L48: =ABS(SUMIF(OFFSET(SUM_1165_2,0,-1),"",SUM_1165_2)-SUMIF(OFFSET(SUM_1165_2,0,-1),"(",SUM_1165_2)) -> 0 | M48: =IF(K48="(",")","") ->  | N48: =IF((SUMIF(OFFSET(SUM_1165_3,0,-1),"",SUM_1165_3)-SUMIF(OFFSET(SUM_1165_3,0,-1),"(",SUM_1165_3))<0,"(","") ->  | O48: =ABS(SUMIF(OFFSET(SUM_1165_3,0,-1),"",SUM_1165_3)-SUMIF(OFFSET(SUM_1165_3,0,-1),"(",SUM_1165_3)) -> 0 | P48: =IF(N48="(",")","") -> 
E49: 9.1 | G49: =IF(Актив!$G$21="1180","1185","1165")&"1" -> 11851
E50: 9.2 | G50: =IF(Актив!$G$21="1180","1185","1165")&"2" -> 11852
F51: Добавить строку
E52: 10 | F52: ="Прочие внеоборотные активы (стр."&Актив!$G$22&"), в том числе:" -> Прочие внеоборотные активы (стр.1190), в том числе: | H52: =IF(Актив!H22="(","(","") ->  | I52: =Актив!I22 -> 0 | J52: =IF(H52="(",")","") ->  | K52: =IF(Актив!K22="(","(","") ->  | L52: =Актив!L22 -> 0 | M52: =IF(K52="(",")","") ->  | N52: =IF(Актив!N22="(","(","") ->  | O52: =Актив!O22 -> 0 | P52: =IF(N52="(",")","") -> 
E53: 10.1 | G53: =Актив!$G$22&"1" -> 11901
E54: 10.2 | G54: =Актив!$G$22&"2" -> 11902
E55: 10.3 | G55: =Актив!$G$22&"3" -> 11903
F56: Добавить строку
E57: 11 | F57: Запасы (стр.1210), в том числе: | H57: =IF(Актив!H25="(","(","") ->  | I57: =Актив!I25 -> 1864 | J57: =IF(H57="(",")","") ->  | K57: =IF(Актив!K25="(","(","") ->  | L57: =Актив!L25 -> 1132 | M57: =IF(K57="(",")","") ->  | N57: =IF(Актив!N25="(","(","") ->  | O57: =Актив!O25 -> 1120 | P57: =IF(N57="(",")","") -> 
E58: 11.1 | F58: материалы | G58: 12101 | I58: 5 | L58: 30 | O58: 100
E59: 11.2 | F59: уголь | G59: 12102 | I59: 1859 | L59: 1102 | O59: 1006
E60: 11.3 | F60: МБП | G60: 12103 | I60: 0 | L60: 0 | O60: 14
E61: 11.4 | F61: нет | G61: 12104 | I61: 0 | L61: 0 | O61: 0
E62: 11.5 | F62: нет | G62: 12105 | I62: 0 | L62: 0 | O62: 0
F63: Добавить строку
E64: 12 | F64: Налог на добавленную стоимость по приобретенным ценностям (стр.1220), в том числе: | H64: =IF(Актив!H26="(","(","") ->  | I64: =Актив!I26 -> 0 | J64: =IF(H64="(",")","") ->  | K64: =IF(Актив!K26="(","(","") ->  | L64: =Актив!L26 -> 0 | M64: =IF(K64="(",")","") ->  | N64: =IF(Актив!N26="(","(","") ->  | O64: =Актив!O26 -> 0 | P64: =IF(N64="(",")","") -> 
E65: 12.1 | G65: 12201
F66: Добавить строку
E67: 13 | F67: Дебиторская задолженность (стр.1230), в том числе: | H67: =IF(Актив!H27="(","(","") ->  | I67: =Актив!I27 -> 3430 | J67: =IF(H67="(",")","") ->  | K67: =IF(Актив!K27="(","(","") ->  | L67: =Актив!L27 -> 4092 | M67: =IF(K67="(",")","") ->  | N67: =IF(Актив!N27="(","(","") ->  | O67: =Актив!O27 -> 5360 | P67: =IF(N67="(",")","") -> 
E68: 13.1 | F68: расчеты с поставщиками и подрядчиками | G68: 12301 | I68: 431 | L68: 164 | O68: 31
E69: 13.2 | F69: расчеты с покупателями и заказчиками | G69: 12302 | I69: 2997 | L69: 3674 | O69: 5182
E70: 13.3 | F70: расчеты по налогам и сборам | G70: 12303 | I70: 2 | L70: 77 | O70: 0
E71: 13.4 | F71: расчеты с подотчетными лицами | G71: 12304 | I71: 0 | L71: 177 | O71: 147
E72: 13.5 | F72: нет | G72: 12305 | I72: 0 | L72: 0 | O72: 0
F73: Добавить строку
E74: 14 | F74: Финансовые вложения (за исключением денежных эквивалентов) (стр.1240), в том числе: | H74: =IF(Актив!H28="(","(","") ->  | I74: =Актив!I28 -> 0 | J74: =IF(H74="(",")","") ->  | K74: =IF(Актив!K28="(","(","") ->  | L74: =Актив!L28 -> 0 | M74: =IF(K74="(",")","") ->  | N74: =IF(Актив!N28="(","(","") ->  | O74: =Актив!O28 -> 0 | P74: =IF(N74="(",")","") -> 
E75: 14.1 | G75: 12401
E76: 14.2 | G76: 12402
E77: 14.3 | G77: 12403
F78: Добавить строку
E79: 15 | F79: Денежные средства и денежные эквиваленты (стр.1250), в том числе: | H79: =IF(Актив!H29="(","(","") ->  | I79: =Актив!I29 -> 1149 | J79: =IF(H79="(",")","") ->  | K79: =IF(Актив!K29="(","(","") ->  | L79: =Актив!L29 -> 34 | M79: =IF(K79="(",")","") ->  | N79: =IF(Актив!N29="(","(","") ->  | O79: =Актив!O29 -> 11 | P79: =IF(N79="(",")","") -> 
E80: 15.1 | F80: касса | G80: 12501 | I80: 519 | L80: 2 | O80: 9
E81: 15.2 | F81: расчетные счета в банке | G81: 12502 | I81: 630 | L81: 32 | O81: 2
F82: Добавить строку
E83: 16 | F83: Вписываемые показатели (стр.1255), в том числе: | H83: =IF((SUMIF(OFFSET(SUM_1255_1,0,-1),"",SUM_1255_1)-SUMIF(OFFSET(SUM_1255_1,0,-1),"(",SUM_1255_1))<0,"(","") ->  | I83: =ABS(SUMIF(OFFSET(SUM_1255_1,0,-1),"",SUM_1255_1)-SUMIF(OFFSET(SUM_1255_1,0,-1),"(",SUM_1255_1)) -> 0 | J83: =IF(H83="(",")","") ->  | K83: =IF((SUMIF(OFFSET(SUM_1255_2,0,-1),"",SUM_1255_2)-SUMIF(OFFSET(SUM_1255_2,0,-1),"(",SUM_1255_2))<0,"(","") ->  | L83: =ABS(SUMIF(OFFSET(SUM_1255_2,0,-1),"",SUM_1255_2)-SUMIF(OFFSET(SUM_1255_2,0,-1),"(",SUM_1255_2)) -> 0 | M83: =IF(K83="(",")","") ->  | N83: =IF((SUMIF(OFFSET(SUM_1255_3,0,-1),"",SUM_1255_3)-SUMIF(OFFSET(SUM_1255_3,0,-1),"(",SUM_1255_3))<0,"(","") ->  | O83: =ABS(SUMIF(OFFSET(SUM_1255_3,0,-1),"",SUM_1255_3)-SUMIF(OFFSET(SUM_1255_3,0,-1),"(",SUM_1255_3)) -> 0 | P83: =IF(N83="(",")","") -> 
E84: 16.1 | F84: нет | G84: 12551 | I84: 0 | L84: 0 | O84: 0
E85: 16.2 | F85: нет | G85: 12552 | I85: 0 | L85: 0 | O85: 0
F86: Добавить строку
E87: 17 | F87: Прочие оборотные активы (стр.1260), в том числе: | H87: =IF(Актив!H30="(","(","") ->  | I87: =Актив!I30 -> 7 | J87: =IF(H87="(",")","") ->  | K87: =IF(Актив!K30="(","(","") ->  | L87: =Актив!L30 -> 0 | M87: =IF(K87="(",")","") ->  | N87: =IF(Актив!N30="(","(","") ->  | O87: =Актив!O30 -> 0 | P87: =IF(N87="(",")","") -> 
E88: 17.1 | F88: переплата в ФСС | G88: 12601 | I88: 7
E89: 17.2 | F89: нет | G89: 12602 | I89: 0
E90: 17.3 | F90: нет | G90: 12603 | I90: 0
F91: Добавить строку
E92: 18 | F92: Уставный капитал (складочный капитал, уставный фонд, вклады товарищей) (стр.1310), в том числе: | H92: =IF(Пассив!H14="(","(","") ->  | I92: =Пассив!I14 -> 10 | J92: =IF(H92="(",")","") ->  | K92: =IF(Пассив!K14="(","(","") ->  | L92: =Пассив!L14 -> 10 | M92: =IF(K92="(",")","") ->  | N92: =IF(Пассив!N14="(","(","") ->  | O92: =Пассив!O14 -> 10 | P92: =IF(N92="(",")","") -> 
E93: 18.1 | F93: Уставный капитал (складочный капитал, уставный фонд, вклады товарищей) (стр.1310), в том числе: | G93: 13101 | I93: 10 | L93: 10 | O93: 10
F94: Добавить строку
E95: 19 | F95: Собственные акции, выкупленные у акционеров (стр.1320), в том числе: | H95: =IF(Пассив!H15="(","(","") -> ( | I95: =Пассив!I15 -> 0 | J95: =IF(H95="(",")","") -> ) | K95: =IF(Пассив!K15="(","(","") -> ( | L95: =Пассив!L15 -> 0 | M95: =IF(K95="(",")","") -> ) | N95: =IF(Пассив!N15="(","(","") -> ( | O95: =Пассив!O15 -> 0 | P95: =IF(N95="(",")","") -> )
E96: 19.1 | G96: 13201 | H96: ( | J96: ) | K96: ( | M96: ) | N96: ( | P96: )
F97: Добавить строку
E98: 20 | F98: Целевой капитал (стр.1320), в том числе: | H98: =IF((SUMIF(OFFSET(SUM_1320_1,0,-1),"",SUM_1320_1)-SUMIF(OFFSET(SUM_1320_1,0,-1),"(",SUM_1320_1))<0,"(","") ->  | I98: =ABS(SUMIF(OFFSET(SUM_1320_1,0,-1),"",SUM_1320_1)-SUMIF(OFFSET(SUM_1320_1,0,-1),"(",SUM_1320_1)) -> 0 | J98: =IF(H98="(",")","") ->  | K98: =IF((SUMIF(OFFSET(SUM_1320_2,0,-1),"",SUM_1320_2)-SUMIF(OFFSET(SUM_1320_2,0,-1),"(",SUM_1320_2))<0,"(","") ->  | L98: =ABS(SUMIF(OFFSET(SUM_1320_2,0,-1),"",SUM_1320_2)-SUMIF(OFFSET(SUM_1320_2,0,-1),"(",SUM_1320_2)) -> 0 | M98: =IF(K98="(",")","") ->  | N98: =IF((SUMIF(OFFSET(SUM_1320_3,0,-1),"",SUM_1320_3)-SUMIF(OFFSET(SUM_1320_3,0,-1),"(",SUM_1320_3))<0,"(","") ->  | O98: =ABS(SUMIF(OFFSET(SUM_1320_3,0,-1),"",SUM_1320_3)-SUMIF(OFFSET(SUM_1320_3,0,-1),"(",SUM_1320_3)) -> 0 | P98: =IF(N98="(",")","") -> 
E99: 20.1 | G99: 13201
F100: Добавить строку
E101: 21 | F101: Переоценка внеоборотных активов (стр.1340), в том числе: | H101: =IF(Пассив!H16="(","(","") ->  | I101: =Пассив!I16 -> 0 | J101: =IF(H101="(",")","") ->  | K101: =IF(Пассив!K16="(","(","") ->  | L101: =Пассив!L16 -> 0 | M101: =IF(K101="(",")","") ->  | N101: =IF(Пассив!N16="(","(","") ->  | O101: =Пассив!O16 -> 0 | P101: =IF(N101="(",")","") -> 
E102: 21.1 | G102: 13401
F103: Добавить строку
E104: 22 | F104: Добавочный капитал (без переоценки)/Целевые средства (стр.1350), в том числе: | H104: =IF(Пассив!H17="(","(","") ->  | I104: =Пассив!I17 -> 0 | J104: =IF(H104="(",")","") ->  | K104: =IF(Пассив!K17="(","(","") ->  | L104: =Пассив!L17 -> 0 | M104: =IF(K104="(",")","") ->  | N104: =IF(Пассив!N17="(","(","") ->  | O104: =Пассив!O17 -> 0 | P104: =IF(N104="(",")","") -> 
E105: 22.1 | G105: 13501
E106: 22.2 | G106: 13502
F107: Добавить строку
E108: 23 | F108: Резервный капитал/Фонд недвижимого и особо ценного движимого имущества (стр.1360), в том числе: | H108: =IF(Пассив!H18="(","(","") ->  | I108: =Пассив!I18 -> 0 | J108: =IF(H108="(",")","") ->  | K108: =IF(Пассив!K18="(","(","") ->  | L108: =Пассив!L18 -> 0 | M108: =IF(K108="(",")","") ->  | N108: =IF(Пассив!N18="(","(","") ->  | O108: =Пассив!O18 -> 0 | P108: =IF(N108="(",")","") -> 
E109: 23.1 | G109: 13601
E110: 23.2 | G110: 13602
F111: Добавить строку
E112: 24 | F112: Нераспределенная прибыль (непокрытый убыток)/Резервные и иные целевые фонды (стр.1370), в том числе: | H112: =IF(Пассив!H19="(","(","") ->  | I112: =Пассив!I19 -> 4758 | J112: =IF(H112="(",")","") ->  | K112: =IF(Пассив!K19="(","(","") ->  | L112: =Пассив!L19 -> 5037 | M112: =IF(K112="(",")","") ->  | N112: =IF(Пассив!N19="(","(","") ->  | O112: =Пассив!O19 -> 5805 | P112: =IF(N112="(",")","") -> 
E113: 24.1 | F113: прибыль | G113: 13701 | I113: 4758 | L113: 5037 | O113: 5805
E114: 24.2 | F114: нет | G114: 13702 | I114: 0 | L114: 0 | O114: 0
F115: Добавить строку
E116: 25 | F116: Вписываемые показатели (стр.1375), в том числе: | H116: =IF((SUMIF(OFFSET(SUM_1375_1,0,-1),"",SUM_1375_1)-SUMIF(OFFSET(SUM_1375_1,0,-1),"(",SUM_1375_1))<0,"(","") ->  | I116: =ABS(SUMIF(OFFSET(SUM_1375_1,0,-1),"",SUM_1375_1)-SUMIF(OFFSET(SUM_1375_1,0,-1),"(",SUM_1375_1)) -> 0 | J116: =IF(H116="(",")","") ->  | K116: =IF((SUMIF(OFFSET(SUM_1375_2,0,-1),"",SUM_1375_2)-SUMIF(OFFSET(SUM_1375_2,0,-1),"(",SUM_1375_2))<0,"(","") ->  | L116: =ABS(SUMIF(OFFSET(SUM_1375_2,0,-1),"",SUM_1375_2)-SUMIF(OFFSET(SUM_1375_2,0,-1),"(",SUM_1375_2)) -> 0 | M116: =IF(K116="(",")","") ->  | N116: =IF((SUMIF(OFFSET(SUM_1375_3,0,-1),"",SUM_1375_3)-SUMIF(OFFSET(SUM_1375_3,0,-1),"(",SUM_1375_3))<0,"(","") ->  | O116: =ABS(SUMIF(OFFSET(SUM_1375_3,0,-1),"",SUM_1375_3)-SUMIF(OFFSET(SUM_1375_3,0,-1),"(",SUM_1375_3)) -> 0 | P116: =IF(N116="(",")","") -> 
E117: 25.1 | F117: нет | G117: 13751 | I117: 0 | L117: 0 | O117: 0
E118: 25.2 | F118: нет | G118: 13752 | I118: 0 | L118: 0 | O118: 0
F119: Добавить строку
E120: 26 | F120: Заемные средства (стр.1410), в том числе: | H120: =IF(Пассив!H22="(","(","") ->  | I120: =Пассив!I22 -> 0 | J120: =IF(H120="(",")","") ->  | K120: =IF(Пассив!K22="(","(","") ->  | L120: =Пассив!L22 -> 0 | M120: =IF(K120="(",")","") ->  | N120: =IF(Пассив!N22="(","(","") ->  | O120: =Пассив!O22 -> 0 | P120: =IF(N120="(",")","") -> 
E121: 26.1 | G121: 14101
E122: 26.2 | G122: 14102
F123: Добавить строку
E124: 27 | F124: Отложенные налоговые обязательства (стр.1420), в том числе: | H124: =IF(Пассив!H23="(","(","") ->  | I124: =Пассив!I23 -> 0 | J124: =IF(H124="(",")","") ->  | K124: =IF(Пассив!K23="(","(","") ->  | L124: =Пассив!L23 -> 0 | M124: =IF(K124="(",")","") ->  | N124: =IF(Пассив!N23="(","(","") ->  | O124: =Пассив!O23 -> 0 | P124: =IF(N124="(",")","") -> 
E125: 27.1 | G125: 14201
F126: Добавить строку
E127: 28 | F127: Оценочные обязательства (стр.1430), в том числе: | H127: =IF(Пассив!H24="(","(","") ->  | I127: =Пассив!I24 -> 0 | J127: =IF(H127="(",")","") ->  | K127: =IF(Пассив!K24="(","(","") ->  | L127: =Пассив!L24 -> 0 | M127: =IF(K127="(",")","") ->  | N127: =IF(Пассив!N24="(","(","") ->  | O127: =Пассив!O24 -> 0 | P127: =IF(N127="(",")","") -> 
E128: 28.1 | G128: 14301
E129: 28.2 | G129: 14302
F130: Добавить строку
E131: 29 | F131: Вписываемые показатели (стр.1435), в том числе: | H131: =IF((SUMIF(OFFSET(SUM_1435_1,0,-1),"",SUM_1435_1)-SUMIF(OFFSET(SUM_1435_1,0,-1),"(",SUM_1435_1))<0,"(","") ->  | I131: =ABS(SUMIF(OFFSET(SUM_1435_1,0,-1),"",SUM_1435_1)-SUMIF(OFFSET(SUM_1435_1,0,-1),"(",SUM_1435_1)) -> 0 | J131: =IF(H131="(",")","") ->  | K131: =IF((SUMIF(OFFSET(SUM_1435_2,0,-1),"",SUM_1435_2)-SUMIF(OFFSET(SUM_1435_2,0,-1),"(",SUM_1435_2))<0,"(","") ->  | L131: =ABS(SUMIF(OFFSET(SUM_1435_2,0,-1),"",SUM_1435_2)-SUMIF(OFFSET(SUM_1435_2,0,-1),"(",SUM_1435_2)) -> 0 | M131: =IF(K131="(",")","") ->  | N131: =IF((SUMIF(OFFSET(SUM_1435_3,0,-1),"",SUM_1435_3)-SUMIF(OFFSET(SUM_1435_3,0,-1),"(",SUM_1435_3))<0,"(","") ->  | O131: =ABS(SUMIF(OFFSET(SUM_1435_3,0,-1),"",SUM_1435_3)-SUMIF(OFFSET(SUM_1435_3,0,-1),"(",SUM_1435_3)) -> 0 | P131: =IF(N131="(",")","") -> 
E132: 29.1 | G132: 14351
E133: 29.2 | G133: 14352
F134: Добавить строку
E135: 30 | F135: Прочие долгосрочные обязательства (стр.1450), в том числе: | H135: =IF(Пассив!H25="(","(","") ->  | I135: =Пассив!I25 -> 0 | J135: =IF(H135="(",")","") ->  | K135: =IF(Пассив!K25="(","(","") ->  | L135: =Пассив!L25 -> 0 | M135: =IF(K135="(",")","") ->  | N135: =IF(Пассив!N25="(","(","") ->  | O135: =Пассив!O25 -> 0 | P135: =IF(N135="(",")","") -> 
E136: 30.1 | G136: 14501
F137: Добавить строку
E138: 31 | F138: Заемные средства (стр.1510), в том числе: | H138: =IF(Пассив!H28="(","(","") ->  | I138: =Пассив!I28 -> 0 | J138: =IF(H138="(",")","") ->  | K138: =IF(Пассив!K28="(","(","") ->  | L138: =Пассив!L28 -> 0 | M138: =IF(K138="(",")","") ->  | N138: =IF(Пассив!N28="(","(","") ->  | O138: =Пассив!O28 -> 0 | P138: =IF(N138="(",")","") -> 
E139: 31.1 | G139: 15101
F140: Добавить строку
E141: 32 | F141: Кредиторская задолженность (стр.1520), в том числе: | H141: =IF(Пассив!H29="(","(","") ->  | I141: =Пассив!I29 -> 2149 | J141: =IF(H141="(",")","") ->  | K141: =IF(Пассив!K29="(","(","") ->  | L141: =Пассив!L29 -> 600 | M141: =IF(K141="(",")","") ->  | N141: =IF(Пассив!N29="(","(","") ->  | O141: =Пассив!O29 -> 1239 | P141: =IF(N141="(",")","") -> 
E142: 32.1 | F142: расчеты с поставщиками и подрядчиками | G142: 15201 | I142: 1503 | L142: 264 | O142: 1007
E143: 32.2 | F143: расчеты с покупателями и заказчиками | G143: 15202 | I143: 300 | L143: 102 | O143: 32
E144: 32.3 | F144: расчеты по налогам и сборам | G144: 15203 | I144: 26 | L144: 46 | O144: 33
E145: 32.4 | F145: расчеты по социальному страхованию | G145: 15204 | I145: 209 | L145: 94 | O145: 55
E146: 32.5 | F146: расчеты с персоналом | G146: 15205 | I146: 106 | L146: 90 | O146: 112
E147: 32.6 | F147: расчеты с подотчетными лицами | G147: 15206 | I147: 5 | L147: 4 | O147: 0
E148: 32.7 | F148: нет | G148: 15207 | I148: 0 | L148: 0 | O148: 0
F149: Добавить строку
E150: 33 | F150: Доходы будущих периодов (стр.1530), в том числе: | H150: =IF(Пассив!H30="(","(","") ->  | I150: =Пассив!I30 -> 0 | J150: =IF(H150="(",")","") ->  | K150: =IF(Пассив!K30="(","(","") ->  | L150: =Пассив!L30 -> 0 | M150: =IF(K150="(",")","") ->  | N150: =IF(Пассив!N30="(","(","") ->  | O150: =Пассив!O30 -> 0 | P150: =IF(N150="(",")","") -> 
E151: 33.1 | G151: 15301
F152: Добавить строку
E153: 34 | F153: Оценочные обязательства (стр.1540), в том числе: | H153: =IF(Пассив!H31="(","(","") ->  | I153: =Пассив!I31 -> 0 | J153: =IF(H153="(",")","") ->  | K153: =IF(Пассив!K31="(","(","") ->  | L153: =Пассив!L31 -> 0 | M153: =IF(K153="(",")","") ->  | N153: =IF(Пассив!N31="(","(","") ->  | O153: =Пассив!O31 -> 0 | P153: =IF(N153="(",")","") -> 
E154: 34.1 | G154: 15401
F155: Добавить строку
E156: 35 | F156: Вписываемые показатели (стр.1545), в том числе: | H156: =IF((SUMIF(OFFSET(SUM_1545_1,0,-1),"",SUM_1545_1)-SUMIF(OFFSET(SUM_1545_1,0,-1),"(",SUM_1545_1))<0,"(","") ->  | I156: =ABS(SUMIF(OFFSET(SUM_1545_1,0,-1),"",SUM_1545_1)-SUMIF(OFFSET(SUM_1545_1,0,-1),"(",SUM_1545_1)) -> 0 | J156: =IF(H156="(",")","") ->  | K156: =IF((SUMIF(OFFSET(SUM_1545_2,0,-1),"",SUM_1545_2)-SUMIF(OFFSET(SUM_1545_2,0,-1),"(",SUM_1545_2))<0,"(","") ->  | L156: =ABS(SUMIF(OFFSET(SUM_1545_2,0,-1),"",SUM_1545_2)-SUMIF(OFFSET(SUM_1545_2,0,-1),"(",SUM_1545_2)) -> 0 | M156: =IF(K156="(",")","") ->  | N156: =IF((SUMIF(OFFSET(SUM_1545_3,0,-1),"",SUM_1545_3)-SUMIF(OFFSET(SUM_1545_3,0,-1),"(",SUM_1545_3))<0,"(","") ->  | O156: =ABS(SUMIF(OFFSET(SUM_1545_3,0,-1),"",SUM_1545_3)-SUMIF(OFFSET(SUM_1545_3,0,-1),"(",SUM_1545_3)) -> 0 | P156: =IF(N156="(",")","") -> 
E157: 35.1 | G157: 15451
E158: 35.2 | G158: 15452
F159: Добавить строку
E160: 36 | F160: Прочие краткосрочные обязательства (стр.1550), в том числе: | H160: =IF(Пассив!H32="(","(","") ->  | I160: =Пассив!I32 -> 11 | J160: =IF(H160="(",")","") ->  | K160: =IF(Пассив!K32="(","(","") ->  | L160: =Пассив!L32 -> 2 | M160: =IF(K160="(",")","") ->  | N160: =IF(Пассив!N32="(","(","") ->  | O160: =Пассив!O32 -> 0 | P160: =IF(N160="(",")","") -> 
E161: 36.1 | F161: расчеты по алиментам | G161: 15501 | I161: 11 | L161: 2
F162: Добавить строку

Sheet Комментарии
A2: Амурская область
D8: КОММЕНТАРИИ

Sheet Проверка
E10: Результат проверки
E12: Ссылка | F12: Причина | G12: Статус ошибки
E13: 1 | F13: 2 | G13: 3

Sheet AllSheetsInThisWorkbook (hidden)
A1: Расчетные листы | B1: Скрытые листы
A2: Инструкция | B2: AllSheetsInThisWorkbook
A3: Обновление | B3: et_union
A4: Лог обновления | B4: TEHSHEET
A5: Выбор субъекта РФ | B5: REESTR_ORG
A6: Титульный | B6: REESTR_FILTERED
A7: Актив | B7: REESTR_MO
A8: Пассив | B8: modHyperlink
A9: Расшифровка показателей | B9: modChange
A10: Комментарии | B10: modPROV
A11: Проверка | B11: modTitleSheetHeaders
B12: modServiceModule
B13: modCommandButton
B14: modReestr
B15: modClassifierValidate
B16: modWindowClipboard
B17: modInfo
B18: modfrmReestr
B19: modfrmDateChoose
B20: modDblClick
B21: modUpdTemplMain
B22: modRegionSelectSub
B23: modThisWorkbook
B24: modReestrMO
B25: modSheetMain01
B26: modSheetMain02
B27: modSheetMain03
B28: modSheetMain04
B29: modSheetMain05
B30: modSheetMain06
B31: Паспорт

Sheet et_union (hidden)
A2: add_HELP_range
A6: add_HELP_range_2
H8: ( | J8: ) | K8: ( | M8: ) | N8: ( | P8: )
A10: edit_year_dec_1
E12: 3 | F12: ="Нематериальные поисковые активы (стр."&Актив!$G$16&"), в том числе:" -> Нематериальные поисковые активы (стр.1130), в том числе: | H12: =IF(Актив!H$16="(","(","") ->  | I12: =Актив!I$16 -> 0 | J12: =IF(H12="(",")","") ->  | K12: =IF(Актив!K$16="(","(","") ->  | L12: =Актив!L$16 -> 0 | M12: =IF(K12="(",")","") ->  | N12: =IF(Актив!N$16="(","(","") ->  | O12: =Актив!O$16 -> 0 | P12: =IF(N12="(",")","") -> 
E13: 3.1 | G13: =Актив!$G$16&"1" -> 11301
E14: 3.2 | G14: =Актив!$G$16&"2" -> 11302
F15: Добавить строку
A17: edit_year_dec_2
E19: 4 | F19: ="Материальные поисковые активы (стр."&Актив!$G$17&"), в том числе:" -> Материальные поисковые активы (стр.1140), в том числе: | H19: =IF(Актив!H$17="(","(","") ->  | I19: =Актив!I$17 -> 0 | J19: =IF(H19="(",")","") ->  | K19: =IF(Актив!K$17="(","(","") ->  | L19: =Актив!L$17 -> 0 | M19: =IF(K19="(",")","") ->  | N19: =IF(Актив!N$17="(","(","") ->  | O19: =Актив!O$17 -> 0 | P19: =IF(N19="(",")","") -> 
E20: 4.1 | G20: =Актив!$G$17&"1" -> 11401
E21: 4.2 | G21: =Актив!$G$17&"2" -> 11402
F22: Добавить строку

Sheet TEHSHEET (hidden)
A1: регион | B1: Логика | C1: Кварталы | D1: Года | E1: Единица измерения | F1: Месяц-текст | G1: Месяц-число | H1: День-число | I1: Указанный год является для организации /org_operates/ | K1: XML_ORG_LIST_TAG_NAMES | X1: Диапазоны с показателями - зависят от года /active_part1_2011/
B2: да | C2: I квартал | D2: 2011 | E2: тыс.руб. | F2: январь | G2: 01 | H2: 01 | I2: первым отчетным годом | K2: NSRF
A3: Алтайский край | B3: нет | C3: I полугодие | D3: 2012 | E3: млн.руб. | F3: февраль | G3: 02 | H3: 02 | I3: вторым отчетным годом | K3: MR_NAME | X3: 1.1 | Y3: Нематериальные активы | Z3: 1110
A4: Амурская область | C4: 9 месяцев | D4: 2013 | F4: март | G4: 03 | H4: 03 | I4: третьим или последующим отчетным годом | K4: OKTMO_MR_NAME | X4: 1.2 | Y4: Результаты исследований и разработок | Z4: 1120
A5: Архангельская область | C5: год | D5: 2014 | F5: апрель | G5: 04 | H5: 04 | K5: MO_NAME
A6: Астраханская область | B6: Выбранный регион | D6: 2015 | F6: май | G6: 05 | H6: 05 | K6: OKTMO_NAME
A7: Белгородская область | B7: 0 | F7: июнь | G7: 06 | H7: 06 | K7: ORG_NAME | X7: 1.3 | Y7: Основные средства | Z7: 1130
A8: Брянская область | F8: июль | G8: 07 | H8: 07 | K8: INN_NAME | X8: 1.4 | Y8: Доходные вложения в материальные ценности | Z8: 1140
A9: Владимирская область | F9: август | G9: 08 | H9: 08 | K9: KPP_NAME | X9: 1.5 | Y9: Финансовые вложения | Z9: 1150
A10: Волгоградская область | F10: сентябрь | G10: 09 | H10: 09 | X10: 1.6 | Y10: Отложенные налоговые активы | Z10: 1160
A11: Вологодская область | F11: октябрь | G11: 10 | H11: 10 | K11: XML_MR_MO_OKTMO_LIST_TAG_NAMES | X11: 1.7 | Y11: Прочие внеоборотные активы | Z11: 1170
A12: Воронежская область | F12: ноябрь | G12: 11 | H12: 11 | K12: NSRF | X12: 1.8 | Y12: ИТОГО по разделу I | Z12: 1100
A13: г.Байконур | F13: декабрь | G13: 12 | H13: 12 | K13: MR_NAME
A14: г. Москва | H14: 13 | K14: OKTMO_MR_NAME | X14: Диапазоны с показателями - зависят от года /active_part1_2012/
A15: г.Санкт-Петербург | H15: 14 | K15: MO_NAME
A16: Еврейская автономная область | H16: 15 | K16: OKTMO_NAME | X16: 1.1 | Y16: Нематериальные активы | Z16: 1110
A17: Забайкальский край | H17: 16 | X17: 1.2 | Y17: Результаты исследований и разработок | Z17: 1120
A18: Ивановская область | H18: 17 | X18: 1.3 | Y18: Нематериальные поисковые активы | Z18: 1130
A19: Иркутская область | H19: 18 | K19: Формулы с листов Актив и Пассив | X19: 1.4 | Y19: Материальные поисковые активы | Z19: 1140
A20: Кабардино-Балкарская республика | H20: 19 | K20: LINE_1100 | L20: =IF((SUMIF(OFFSET(SUM_1100_1,0,-1),"",SUM_1100_1)-SUMIF(OFFSET(SUM_1100_1,0,-1),"(",SUM_1100_1))<0,"(","") ->  | M20: =ABS(SUMIF(OFFSET(SUM_1100_1,0,-1),"",SUM_1100_1)-SUMIF(OFFSET(SUM_1100_1,0,-1),"(",SUM_1100_1)) -> 478 | N20: =IF(L20="(",")","") ->  | O20: =IF((SUMIF(OFFSET(SUM_1100_2,0,-1),"",SUM_1100_2)-SUMIF(OFFSET(SUM_1100_2,0,-1),"(",SUM_1100_2))<0,"(","") ->  | P20: =ABS(SUMIF(OFFSET(SUM_1100_2,0,-1),"",SUM_1100_2)-SUMIF(OFFSET(SUM_1100_2,0,-1),"(",SUM_1100_2)) -> 391 | Q20: =IF(O20="(",")","") ->  | R20: =IF((SUMIF(OFFSET(SUM_1100_3,0,-1),"",SUM_1100_3)-SUMIF(OFFSET(SUM_1100_3,0,-1),"(",SUM_1100_3))<0,"(","") ->  | S20: =ABS(SUMIF(OFFSET(SUM_1100_3,0,-1),"",SUM_1100_3)-SUMIF(OFFSET(SUM_1100_3,0,-1),"(",SUM_1100_3)) -> 563 | T20: =IF(R20="(",")","") ->  | X20: 1.5 | Y20: Основные средства | Z20: 1150
A21: Калининградская область | H21: 20 | K21: LINE_1200 | L21: =IF((SUMIF(OFFSET(SUM_1200_1,0,-1),"",SUM_1200_1)-SUMIF(OFFSET(SUM_1200_1,0,-1),"(",SUM_1200_1))<0,"(","") ->  | M21: =ABS(SUMIF(OFFSET(SUM_1200_1,0,-1),"",SUM_1200_1)-SUMIF(OFFSET(SUM_1200_1,0,-1),"(",SUM_1200_1)) -> 6450 | O21: =IF((SUMIF(OFFSET(SUM_1200_2,0,-1),"",SUM_1200_2)-SUMIF(OFFSET(SUM_1200_2,0,-1),"(",SUM_1200_2))<0,"(","") ->  | P21: =ABS(SUMIF(OFFSET(SUM_1200_2,0,-1),"",SUM_1200_2)-SUMIF(OFFSET(SUM_1200_2,0,-1),"(",SUM_1200_2)) -> 5258 | R21: =IF((SUMIF(OFFSET(SUM_1200_3,0,-1),"",SUM_1200_3)-SUMIF(OFFSET(SUM_1200_3,0,-1),"(",SUM_1200_3))<0,"(","") ->  | S21: =ABS(SUMIF(OFFSET(SUM_1200_3,0,-1),"",SUM_1200_3)-SUMIF(OFFSET(SUM_1200_3,0,-1),"(",SUM_1200_3)) -> 6491 | X21: 1.6 | Y21: Доходные вложения в материальные ценности | Z21: 1160
A22: Калужская область | H22: 21 | K22: LINE_1600 | L22: =IF((IF(L13="(",-LINE_1100_1,LINE_1100_1)+IF(L21="(",-LINE_1200_1,LINE_1200_1))<0,"(","") ->  | M22: =ABS(IF(L13="(",-LINE_1100_1,LINE_1100_1)+IF(L21="(",-LINE_1200_1,LINE_1200_1)) -> 6928 | O22: =IF((IF(O13="(",-LINE_1100_2,LINE_1100_2)+IF(O21="(",-LINE_1200_2,LINE_1200_2))<0,"(","") ->  | P22: =ABS(IF(O13="(",-LINE_1100_2,LINE_1100_2)+IF(O21="(",-LINE_1200_2,LINE_1200_2)) -> 5649 | R22: =IF((IF(R13="(",-LINE_1100_3,LINE_1100_3)+IF(R21="(",-LINE_1200_3,LINE_1200_3))<0,"(","") ->  | S22: =ABS(IF(R13="(",-LINE_1100_3,LINE_1100_3)+IF(R21="(",-LINE_1200_3,LINE_1200_3)) -> 7054 | X22: 1.7 | Y22: Финансовые вложения | Z22: 1170
A23: Камчатский край | H23: 22 | K23: LINE_1300 | L23: =IF((SUMIF(OFFSET(SUM_1300_1,0,-1),"",SUM_1300_1)-SUMIF(OFFSET(SUM_1300_1,0,-1),"(",SUM_1300_1))<0,"(","") ->  | M23: =ABS(SUMIF(OFFSET(SUM_1300_1,0,-1),"",SUM_1300_1)-SUMIF(OFFSET(SUM_1300_1,0,-1),"(",SUM_1300_1)) -> 4768 | O23: =IF((SUMIF(OFFSET(SUM_1300_2,0,-1),"",SUM_1300_2)-SUMIF(OFFSET(SUM_1300_2,0,-1),"(",SUM_1300_2))<0,"(","") ->  | P23: =ABS(SUMIF(OFFSET(SUM_1300_2,0,-1),"",SUM_1300_2)-SUMIF(OFFSET(SUM_1300_2,0,-1),"(",SUM_1300_2)) -> 5047 | R23: =IF((SUMIF(OFFSET(SUM_1300_3,0,-1),"",SUM_1300_3)-SUMIF(OFFSET(SUM_1300_3,0,-1),"(",SUM_1300_3))<0,"(","") ->  | S23: =ABS(SUMIF(OFFSET(SUM_1300_3,0,-1),"",SUM_1300_3)-SUMIF(OFFSET(SUM_1300_3,0,-1),"(",SUM_1300_3)) -> 5815 | X23: 1.8 | Y23: Отложенные налоговые активы | Z23: 1180
A24: Карачаево-Черкесская республика | H24: 23 | K24: LINE_1400 | L24: =IF((SUMIF(OFFSET(SUM_1400_1,0,-1),"",SUM_1400_1)-SUMIF(OFFSET(SUM_1400_1,0,-1),"(",SUM_1400_1))<0,"(","") ->  | M24: =ABS(SUMIF(OFFSET(SUM_1400_1,0,-1),"",SUM_1400_1)-SUMIF(OFFSET(SUM_1400_1,0,-1),"(",SUM_1400_1)) -> 0 | O24: =IF((SUMIF(OFFSET(SUM_1400_2,0,-1),"",SUM_1400_2)-SUMIF(OFFSET(SUM_1400_2,0,-1),"(",SUM_1400_2))<0,"(","") ->  | P24: =ABS(SUMIF(OFFSET(SUM_1400_2,0,-1),"",SUM_1400_2)-SUMIF(OFFSET(SUM_1400_2,0,-1),"(",SUM_1400_2)) -> 0 | R24: =IF((SUMIF(OFFSET(SUM_1400_3,0,-1),"",SUM_1400_3)-SUMIF(OFFSET(SUM_1400_3,0,-1),"(",SUM_1400_3))<0,"(","") ->  | S24: =ABS(SUMIF(OFFSET(SUM_1400_3,0,-1),"",SUM_1400_3)-SUMIF(OFFSET(SUM_1400_3,0,-1),"(",SUM_1400_3)) -> 0 | X24: 1.9 | Y24: Прочие внеоборотные активы | Z24: 1190
A25: Кемеровская область | H25: 24 | K25: LINE_1500 | L25: =IF((SUMIF(OFFSET(SUM_1500_1,0,-1),"",SUM_1500_1)-SUMIF(OFFSET(SUM_1500_1,0,-1),"(",SUM_1500_1))<0,"(","") ->  | M25: =ABS(SUMIF(OFFSET(SUM_1500_1,0,-1),"",SUM_1500_1)-SUMIF(OFFSET(SUM_1500_1,0,-1),"(",SUM_1500_1)) -> 2160 | O25: =IF((SUMIF(OFFSET(SUM_1500_2,0,-1),"",SUM_1500_2)-SUMIF(OFFSET(SUM_1500_2,0,-1),"(",SUM_1500_2))<0,"(","") ->  | P25: =ABS(SUMIF(OFFSET(SUM_1500_2,0,-1),"",SUM_1500_2)-SUMIF(OFFSET(SUM_1500_2,0,-1),"(",SUM_1500_2)) -> 602 | R25: =IF((SUMIF(OFFSET(SUM_1500_3,0,-1),"",SUM_1500_3)-SUMIF(OFFSET(SUM_1500_3,0,-1),"(",SUM_1500_3))<0,"(","") ->  | S25: =ABS(SUMIF(OFFSET(SUM_1500_3,0,-1),"",SUM_1500_3)-SUMIF(OFFSET(SUM_1500_3,0,-1),"(",SUM_1500_3)) -> 1239 | X25: 1.10 | Y25: ИТОГО по разделу I | Z25: 1100
A26: Кировская область | H26: 25 | K26: LINE_1700 | L26: =IF((IF(L12="(",-LINE_1300_1,LINE_1300_1)+IF(L18="(",-LINE_1400_1,LINE_1400_1)+IF(L25="(",-LINE_1500_1,LINE_1500_1))<0,"(","") ->  | M26: =ABS(IF(L12="(",-LINE_1300_1,LINE_1300_1)+IF(L18="(",-LINE_1400_1,LINE_1400_1)+IF(L25="(",-LINE_1500_1,LINE_1500_1)) -> 6928 | O26: =IF((IF(O12="(",-LINE_1300_2,LINE_1300_2)+IF(O18="(",-LINE_1400_2,LINE_1400_2)+IF(O25="(",-LINE_1500_2,LINE_1500_2))<0,"(","") ->  | P26: =ABS(IF(O12="(",-LINE_1300_2,LINE_1300_2)+IF(O18="(",-LINE_1400_2,LINE_1400_2)+IF(O25="(",-LINE_1500_2,LINE_1500_2)) -> 5649 | R26: =IF((IF(R12="(",-LINE_1300_3,LINE_1300_3)+IF(R18="(",-LINE_1400_3,LINE_1400_3)+IF(R25="(",-LINE_1500_3,LINE_1500_3))<0,"(","") ->  | S26: =ABS(IF(R12="(",-LINE_1300_3,LINE_1300_3)+IF(R18="(",-LINE_1400_3,LINE_1400_3)+IF(R25="(",-LINE_1500_3,LINE_1500_3)) -> 7054
A27: Костромская область | H27: 26
A28: Краснодарский край | H28: 27 | K28: LINE_YELLOW
A29: Красноярский край | H29: 28
A30: Курганская область | H30: 29 | K30: LINE_YELLOW_ALL
A31: Курская область | H31: 30
A32: Ленинградская область | H32: 31
A33: Липецкая область
A34: Магаданская область
A35: Московская область
A36: Мурманская область
A37: Ненецкий автономный округ
A38: Нижегородская область
A39: Новгородская область
A40: Новосибирская область
A41: Омская область
A42: Оренбургская область
A43: Орловская область
A44: Пензенская область
A45: Пермский край
A46: Приморский край
A47: Псковская область
A48: Республика Адыгея
A49: Республика Алтай
A50: Республика Башкортостан
A51: Республика Бурятия
A52: Республика Дагестан
A53: Республика Ингушетия
A54: Республика Калмыкия
A55: Республика Карелия
A56: Республика Коми
A57: Республика Марий Эл
A58: Республика Мордовия
A59: Республика Саха (Якутия)
A60: Республика Северная Осетия-Алания
A61: Республика Татарстан
A62: Республика Тыва
A63: Республика Хакасия
A64: Ростовская область
A65: Рязанская область
A66: Самарская область
A67: Саратовская область
A68: Сахалинская область
A69: Свердловская область
A70: Смоленская область
A71: Ставропольский край
A72: Тамбовская область
A73: Тверская область
A74: Томская область
A75: Тульская область
A76: Тюменская область
A77: Удмуртская республика
A78: Ульяновская область
A79: Хабаровский край
A80: Ханты-Мансийский автономный округ
A81: Челябинская область
A82: Чеченская республика
A83: Чувашская республика
A84: Чукотский автономный округ
A85: Ямало-Ненецкий автономный округ
A86: Ярославская область

Sheet REESTR_ORG (hidden)
A1: № | B1: МР | C1: МО | D1: МО ОКТМО | E1: ОРГАНИЗАЦИЯ | F1: ИНН | G1: КПП | H1: ВИД ДЕЯТЕЛЬНОСТИ
A2: 1 | B2: Абанский муниципальный район | C2: Абанское | D2: 04601151 | E2: ООО "Водоканал Абанского района" | F2: 2401003997 | G2: 240101001
A3: 2 | B3: Абанский муниципальный район | C3: Абанское | D3: 04601151 | E3: ООО "ЖКХ Абанского района" | F3: 2401004101 | G3: 240101001
A4: 3 | B4: Абанский муниципальный район | C4: Абанское | D4: 04601151 | E4: ООО "Промбытжилсервис" | F4: 2401002496 | G4: 240101001
A5: 4 | B5: Ачинский муниципальный район | C5: Белоярское | D5: 04603402 | E5: ООО "Ачинский районный жилищно-коммунальный сервис" | F5: 2443033175 | G5: 244301001
A6: 5 | B6: Ачинский муниципальный район | C6: Белоярское | D6: 04603402 | E6: ООО "Пром-Строй Ресурс" | F6: 2443040535 | G6: 244301001
A7: 6 | B7: Ачинский муниципальный район | C7: Белоярское | D7: 04603402 | E7: ООО "Теплоресурс" | F7: 2443039346 | G7: 244301001
A8: 7 | B8: Ачинский муниципальный район | C8: Белоярское | D8: 04603402 | E8: ООО "Энергосберегающие технологии" | F8: 2443032654 | G8: 244301001
A9: 8 | B9: Ачинский муниципальный район | C9: Горное | D9: 04603407 | E9: ООО "АльянсСпецСтрой" | F9: 2443037518 | G9: 244301001
A10: 9 | B10: Ачинский муниципальный район | C10: Горное | D10: 04603407 | E10: ООО "Пром-Строй Ресурс" | F10: 2443040535 | G10: 244301001
A11: 10 | B11: Ачинский муниципальный район | C11: Горное | D11: 04603407 | E11: ООО "Энергосберегающие технологии" | F11: 2443032654 | G11: 244301001
A12: 11 | B12: Ачинский муниципальный район | C12: Ключинское | D12: 04603410 | E12: ООО "Пром-Строй Ресурс" | F12: 2443040535 | G12: 244301001
A13: 12 | B13: Ачинский муниципальный район | C13: Ключинское | D13: 04603410 | E13: ООО "Теплоресурс" | F13: 2443039346 | G13: 244301001
A14: 13 | B14: Ачинский муниципальный район | C14: Ключинское | D14: 04603410 | E14: ООО "Энергосберегающие технологии" | F14: 2443032654 | G14: 244301001
A15: 14 | B15: Ачинский муниципальный район | C15: Ключинское | D15: 04603410 | E15: ООО УК "Альянсспецстрой" | F15: 2443009422 | G15: 244301001
A16: 15 | B16: Ачинский муниципальный район | C16: Лапшихинское | D16: 04603413 | E16: ООО "Районное коммунальное хозяйство" | F16: 2443031594 | G16: 244301001
A17: 16 | B17: Ачинский муниципальный район | C17: Малиновское | D17: 04603414 | E17: ООО "Ачинский районный жилищно-коммунальный сервис" | F17: 2443033175 | G17: 244301001
A18: 17 | B18: Ачинский муниципальный район | C18: Малиновское | D18: 04603414 | E18: ООО "Гарант Энерго" | F18: 2462204517 | G18: 246601001
A19: 18 | B19: Ачинский муниципальный район | C19: Преображенское | D19: 04603404 | E19: ОАО "Транссибнефть" филиал Красноярское РНУ | F19: 5502020634 | G19: 246603001
A20: 19 | B20: Ачинский муниципальный район | C20: Преображенское | D20: 04603404 | E20: ООО "Районное коммунальное хозяйство" | F20: 2443031594 | G20: 244301001
A21: 20 | B21: Ачинский муниципальный район | C21: Причулымское | D21: 04603419 | E21: ООО "Пром-Строй Ресурс" | F21: 2443040535 | G21: 244301001
A22: 21 | B22: Ачинский муниципальный район | C22: Причулымское | D22: 04603419 | E22: ООО "Теплоресурс" | F22: 2443039346 | G22: 244301001
A23: 22 | B23: Ачинский муниципальный район | C23: Причулымское | D23: 04603419 | E23: ООО "Энергосберегающие технологии" | F23: 2443032654 | G23: 244301001
A24: 23 | B24: Ачинский муниципальный район | C24: Причулымское | D24: 04603419 | E24: ООО УК "Альянсспецстрой" | F24: 2443009422 | G24: 244301001
A25: 24 | B25: Ачинский муниципальный район | C25: Тарутинское | D25: 04603422 | E25: ООО "Пром-Строй Ресурс" | F25: 2443040535 | G25: 244301001
A26: 25 | B26: Ачинский муниципальный район | C26: Тарутинское | D26: 04603422 | E26: ООО "Теплоресурс" | F26: 2443039346 | G26: 244301001
A27: 26 | B27: Ачинский муниципальный район | C27: Тарутинское | D27: 04603422 | E27: ООО "Энергосберегающие технологии" | F27: 2443032654 | G27: 244301001
A28: 27 | B28: Ачинский муниципальный район | C28: Ястребовское | D28: 04603428 | E28: ООО "Пром-Строй Ресурс" | F28: 2443040535 | G28: 244301001
A29: 28 | B29: Ачинский муниципальный район | C29: Ястребовское | D29: 04603428 | E29: ООО "Теплоресурс" | F29: 2443039346 | G29: 244301001
A30: 29 | B30: Ачинский муниципальный район | C30: Ястребовское | D30: 04603428 | E30: ООО "Энергосберегающие технологии" | F30: 2443032654 | G30: 244301001
A31: 30 | B31: Балахтинский муниципальный район | C31: Еловское | D31: 04604404 | E31: ООО "ЖКХ" | F31: 2403006930 | G31: 240301001
A32: 31 | B32: Балахтинский муниципальный район | C32: Кожановское | D32: 04604405 | E32: ЗАО "Санаторий "Красноярское Загорье" | F32: 2403001924 | G32: 240301001
A33: 32 | B33: Балахтинский муниципальный район | C33: Огурское | D33: 04604407 | E33: ООО ЖКХ "Приморье" | F33: 2403007059 | G33: 240301001
A34: 33 | B34: Балахтинский муниципальный район | C34: Приморское | D34: 04604413 | E34: ООО ЖКХ "Приморье" | F34: 2403007059 | G34: 240301001
A35: 34 | B35: Балахтинский муниципальный район | C35: Тюльковское | D35: 04604419 | E35: ООО "ЖКХ" | F35: 2403006930 | G35: 240301001
A36: 35 | B36: Балахтинский муниципальный район | C36: поселок Балахта | D36: 04604151 | E36: ООО "Балахтинские теплосети" | F36: 2403006986 | G36: 240301001
A37: 36 | B37: Балахтинский муниципальный район | C37: поселок Балахта | D37: 04604151 | E37: ООО "ЖКХ" | F37: 2403006930 | G37: 240301001
A38: 37 | B38: Балахтинский муниципальный район | C38: поселок Балахта | D38: 04604151 | E38: ООО "Красноярская региональная энергетическая компания" | F38: 2466118202 | G38: 246001001
A39: 38 | B39: Березовский муниципальный район | C39: Бархатовское | D39: 04605402 | E39: ОАО "Птицефабрика Бархатовская" | F39: 2404007196 | G39: 240401001
A40: 39 | B40: Березовский муниципальный район | C40: Бархатовское | D40: 04605402 | E40: ООО "Вега" | F40: 2458009841 | G40: 240401001
A41: 40 | B41: Березовский муниципальный район | C41: Бархатовское | D41: 04605402 | E41: ООО "Лифтремонт" | F41: 2458000334 | G41: 245801001
A42: 41 | B42: Березовский муниципальный район | C42: Бархатовское | D42: 04605402 | E42: ООО "Птицефабрика "Сибирская губерния" | F42: 2404010992 | G42: 240401001
A43: 42 | B43: Березовский муниципальный район | C43: Бархатовское | D43: 04605402 | E43: ООО "УК"Заказчик ЖКУ" | F43: 2404012340 | G43: 240401001
A44: 43 | B44: Березовский муниципальный район | C44: Вознесенское | D44: 04605405 | E44: ООО "Жилсервис" | F44: 2404005488 | G44: 240401001
A45: 44 | B45: Березовский муниципальный район | C45: Есаульское | D45: 04605416 | E45: МП ЖКУ Есаульского сельсовета | F45: 2404008672 | G45: 240401001
A46: 45 | B46: Березовский муниципальный район | C46: Есаульское | D46: 04605416 | E46: ОАО Гравиметрическая экспедиция №3 | F46: 2466146520 | G46: 246601001
A47: 46 | B47: Березовский муниципальный район | C47: Зыковское | D47: 04605420 | E47: КрД по тепловодоснабжению - СП ЦД по тепловодоснабжению -филиал ОАО "РЖД" | F47: 7708503727 | G47: 246645014
A48: 47 | B48: Березовский муниципальный район | C48: Зыковское | D48: 04605420 | E48: ООО "ЖКХ" Березовского района | F48: 2404006033 | G48: 240401001
A49: 48 | B49: Березовский муниципальный район | C49: Зыковское | D49: 04605420 | E49: ООО "Зыковская сетевая компания" | F49: 2404013827 | G49: 240401001
A50: 49 | B50: Березовский муниципальный район | C50: Зыковское | D50: 04605420 | E50: ООО "УК"Заказчик ЖКУ" | F50: 2404012340 | G50: 240401001
A51: 50 | B51: Березовский муниципальный район | C51: Зыковское | D51: 04605420 | E51: ООО Энергетик | F51: 2404006058 | G51: 240401001
A52: 51 | B52: Березовский муниципальный район | C52: Маганское | D52: 04605425 | E52: ООО "ЖКХ" Березовского района | F52: 2404006033 | G52: 240401001
A53: 52 | B53: Березовский муниципальный район | C53: Маганское | D53: 04605425 | E53: ООО "Зыковская сетевая компания" | F53: 2404013827 | G53: 240401001
A54: 53 | B54: Березовский муниципальный район | C54: Маганское | D54: 04605425 | E54: ООО "УК"Заказчик ЖКУ" | F54: 2404012340 | G54: 240401001
A55: 54 | B55: Березовский муниципальный район | C55: поселок Березовка | D55: 04605151 | E55: ОАО "Енисейская ТГК (ТГК-13)" | F55: 1901067718 | G55: 997450001
A56: 55 | B56: Березовский муниципальный район | C56: поселок Березовка | D56: 04605151 | E56: ООО "Березовские коммуникационные системы-1" | F56: 2404006548 | G56: 240401001
A57: 56 | B57: Березовский муниципальный район | C57: поселок Березовка | D57: 04605151 | E57: ООО "Водолей-2" | F57: 2404011509 | G57: 240401001
A58: 57 | B58: Березовский муниципальный район | C58: поселок Березовка | D58: 04605151 | E58: ООО "Водолей-3" | F58: 2404011516 | G58: 240401001
A59: 58 | B59: Березовский муниципальный район | C59: поселок Березовка | D59: 04605151 | E59: ООО "Память-1" | F59: 2404009725 | G59: 240401001
A60: 59 | B60: Березовский муниципальный район | C60: поселок Березовка | D60: 04605151 | E60: ООО "Торговый дом" п. Березовка | F60: 2404011185 | G60: 240401001
A61: 60 | B61: Березовский муниципальный район | C61: поселок Березовка | D61: 04605151 | E61: ООО "УК"Заказчик ЖКУ" | F61: 2404012340 | G61: 240401001
A62: 61 | B62: Бирилюсский муниципальный район | C62: Новобирилюсское | D62: 04606416 | E62: ООО "Коммунсервис" | F62: 2405415102 | G62: 240501001
A63: 62 | B63: Бирилюсский муниципальный район | C63: Поселок Рассвет | D63: 04606154 | E63: ООО "Жилбытсервис" | F63: 2405415543 | G63: 240541001
A64: 63 | B64: Бирилюсский муниципальный район | C64: Суриковское | D64: 04606426 | E64: ООО "Теплосбыт" | F64: 2405415832 | G64: 240541001
A65: 64 | B65: Боготольский муниципальный район | C65: Александровское | D65: 04608402 | E65: МКП Боготольского района "Услуга" | F65: 2444301420 | G65: 244431001
A66: 65 | B66: Боготольский муниципальный район | C66: Александровское | D66: 04608402 | E66: ООО "Полигон" | F66: 2444303314 | G66: 244401001
A67: 66 | B67: Боготольский муниципальный район | C67: Боготольский муниципальный район | D67: 04608000 | E67: МКП Боготольского района "Услуга" | F67: 2444301420 | G67: 244431001
A68: 67 | B68: Боготольский муниципальный район | C68: Боготольский муниципальный район | D68: 04608000 | E68: ООО "Полигон" | F68: 2444303314 | G68: 244401001
A69: 68 | B69: Боготольский муниципальный район | C69: Боготольское | D69: 04608404 | E69: МКП Боготольского района "Услуга" | F69: 2444301420 | G69: 244431001
A70: 69 | B70: Боготольский муниципальный район | C70: Боготольское | D70: 04608404 | E70: МУП "РТЭК" | F70: 2444001602 | G70: 244401001
A71: 70 | B71: Боготольский муниципальный район | C71: Боготольское | D71: 04608404 | E71: ООО "Полигон" | F71: 2444303314 | G71: 244401001
A72: 71 | B72: Боготольский муниципальный район | C72: Большекосульское | D72: 04608407 | E72: МКП Боготольского района "Услуга" | F72: 2444301420 | G72: 244431001
A73: 72 | B73: Боготольский муниципальный район | C73: Большекосульское | D73: 04608407 | E73: ОАО "Транссибнефть" Новосибирское РНУ | F73: 5502020634 | G73: 240201001
A74: 73 | B74: Боготольский муниципальный район | C74: Большекосульское | D74: 04608407 | E74: ОАО "Транссибнефть" филиал Новосибирское РНУ НПС "Каштан | F74: 5502020634 | G74: 554250011
A75: 74 | B75: Боготольский муниципальный район | C75: Большекосульское | D75: 04608407 | E75: ООО "Полигон" | F75: 2444303314 | G75: 244401001
A76: 75 | B76: Боготольский муниципальный район | C76: Вагинское | D76: 04608410 | E76: МКП Боготольского района "Услуга" | F76: 2444301420 | G76: 244431001
A77: 76 | B77: Боготольский муниципальный район | C77: Вагинское | D77: 04608410 | E77: ООО "Полигон" | F77: 2444303314 | G77: 244401001
A78: 77 | B78: Боготольский муниципальный район | C78: Краснозаводское | D78: 04608413 | E78: МКП Боготольского района "Услуга" | F78: 2444301420 | G78: 244431001
A79: 78 | B79: Боготольский муниципальный район | C79: Краснозаводское | D79: 04608413 | E79: ООО "Полигон" | F79: 2444303314 | G79: 244401001
A80: 79 | B80: Боготольский муниципальный район | C80: Краснозаводское | D80: 04608413 | E80: ООО "Провинция плюс" | F80: 2444302582 | G80: 244401001
A81: 80 | B81: Боготольский муниципальный район | C81: Критовское | D81: 04608416 | E81: МКП Боготольского района "Услуга" | F81: 2444301420 | G81: 244431001
A82: 81 | B82: Боготольский муниципальный район | C82: Критовское | D82: 04608416 | E82: ООО "Полигон" | F82: 2444303314 | G82: 244401001
A83: 82 | B83: Боготольский муниципальный район | C83: Чайковское | D83: 04608419 | E83: МКП Боготольского района "Услуга" | F83: 2444301420 | G83: 244431001
A84: 83 | B84: Боготольский муниципальный район | C84: Чайковское | D84: 04608419 | E84: ООО "Полигон" | F84: 2444303314 | G84: 244401001
A85: 84 | B85: Боготольский муниципальный район | C85: Юрьевское | D85: 04608422 | E85: МКП Боготольского района "Услуга" | F85: 2444301420 | G85: 244431001
A86: 85 | B86: Боготольский муниципальный район | C86: Юрьевское | D86: 04608422 | E86: ООО "Полигон" | F86: 2444303314 | G86: 244401001
A87: 86 | B87: Богучанский муниципальный район | C87: Ангарское | D87: 04609402 | E87: ООО "Водные ресурсы" | F87: 2407061730 | G87: 240701001
A88: 87 | B88: Богучанский муниципальный район | C88: Артюгинское | D88: 04609404 | E88: ООО "Водные ресурсы" | F88: 2407061730 | G88: 240701001
A89: 88 | B89: Богучанский муниципальный район | C89: Белякинское | D89: 04609407 | E89: ООО "Водные ресурсы" | F89: 2407061730 | G89: 240701001
A90: 89 | B90: Богучанский муниципальный район | C90: Богучанский муниципальный район | D90: 04609000 | E90: ООО "Водные ресурсы" | F90: 2407061730 | G90: 240701001
A91: 90 | B91: Богучанский муниципальный район | C91: Богучанское | D91: 04609410 | E91: ОАО "РусГидро" | F91: 2460066195 | G91: 997450001
A92: 91 | B92: Богучанский муниципальный район | C92: Богучанское | D92: 04609410 | E92: ООО "Богучанские ЭС" | F92: 2407061515 | G92: 240701001
A93: 92 | B93: Богучанский муниципальный район | C93: Богучанское | D93: 04609410 | E93: ООО "Богучанские тепловые сети" | F93: 2407061522 | G93: 240701001
A94: 93 | B94: Богучанский муниципальный район | C94: Богучанское | D94: 04609410 | E94: ООО "Водные ресурсы" | F94: 2407061730 | G94: 240701001
A95: 94 | B95: Богучанский муниципальный район | C95: Богучанское | D95: 04609410 | E95: ООО "Жилье" | F95: 2407062290 | G95: 240701001
A96: 95 | B96: Богучанский муниципальный район | C96: Говорковское | D96: 04609413 | E96: ООО "Водные ресурсы" | F96: 2407061730 | G96: 240701001
A97: 96 | B97: Богучанский муниципальный район | C97: Красногорьевское | D97: 04609418 | E97: ООО "Водные ресурсы" | F97: 2407061730 | G97: 240701001
A98: 97 | B98: Богучанский муниципальный район | C98: Манзенское | D98: 04609419 | E98: ООО "Водные ресурсы" | F98: 2407061730 | G98: 240701001
A99: 98 | B99: Богучанский муниципальный район | C99: Невонское | D99: 04609422 | E99: ООО "Водные ресурсы" | F99: 2407061730 | G99: 240701001
A100: 99 | B100: Богучанский муниципальный район | C100: Нижнетерянское | D100: 04609424 | E100: ООО "Водные ресурсы" | F100: 2407061730 | G100: 240701001
A101: 100 | B101: Богучанский муниципальный район | C101: Новохайское | D101: 04609423 | E101: ООО "Водные ресурсы" | F101: 2407061730 | G101: 240701001
A102: 101 | B102: Богучанский муниципальный район | C102: Октябрьское | D102: 04609445 | E102: ФБУ "Объединение исправительных учреждений №26" ГУФСИН по Красноярскому краю | F102: 2407011169 | G102: 240701001
A103: 102 | B103: Богучанский муниципальный район | C103: Осиновомысское | D103: 04609425 | E103: ООО "Водные ресурсы" | F103: 2407061730 | G103: 240701001
A104: 103 | B104: Богучанский муниципальный район | C104: Пинчугское | D104: 04609428 | E104: ООО "Водные ресурсы" | F104: 2407061730 | G104: 240701001
A105: 104 | B105: Богучанский муниципальный район | C105: Таежнинское | D105: 04609430 | E105: ООО "Водные ресурсы" | F105: 2407061730 | G105: 240701001
A106: 105 | B106: Богучанский муниципальный район | C106: Такучетское | D106: 04609431 | E106: ООО "Водные ресурсы" | F106: 2407061730 | G106: 240701001
A107: 106 | B107: Богучанский муниципальный район | C107: Хребтовское | D107: 04609433 | E107: ООО "Водные ресурсы" | F107: 2407061730 | G107: 240701001
A108: 107 | B108: Богучанский муниципальный район | C108: Чуноярское | D108: 04609434 | E108: КрД по тепловодоснабжению - СП ЦД по тепловодоснабжению -филиал ОАО "РЖД" | F108: 7708503727 | G108: 246645014
A109: 108 | B109: Богучанский муниципальный район | C109: Чуноярское | D109: 04609434 | E109: ООО "Водные ресурсы" | F109: 2407061730 | G109: 240701001
A110: 109 | B110: Богучанский муниципальный район | C110: Шиверское | D110: 04609440 | E110: ООО "Водные ресурсы" | F110: 2407061730 | G110: 240701001
A111: 110 | B111: Большемуртинский муниципальный район | C111: Айтатское | D111: 04610402 | E111: ООО "Красноярская региональная энергетическая компания" | F111: 2466118202 | G111: 246001001
A112: 111 | B112: Большемуртинский муниципальный район | C112: Айтатское | D112: 04610402 | E112: ООО "СТЭП" | F112: 2460225783 | G112: 246001001
A113: 112 | B113: Большемуртинский муниципальный район | C113: Бартатское | D113: 04610404 | E113: ООО "Красноярская региональная энергетическая компания" | F113: 2466118202 | G113: 246001001
A114: 113 | B114: Большемуртинский муниципальный район | C114: Бартатское | D114: 04610404 | E114: ООО "СТЭП" | F114: 2460225783 | G114: 246001001
A115: 114 | B115: Большемуртинский муниципальный район | C115: Большемуртинский муниципальный район | D115: 04610000 | E115: ООО "Красноярская региональная энергетическая компания" | F115: 2466118202 | G115: 246001001
A116: 115 | B116: Большемуртинский муниципальный район | C116: Большемуртинский муниципальный район | D116: 04610000 | E116: ООО "СТЭП" | F116: 2460225783 | G116: 246001001
A117: 116 | B117: Большемуртинский муниципальный район | C117: Верх-Казанское | D117: 04610407 | E117: ООО "Красноярская региональная энергетическая компания" | F117: 2466118202 | G117: 246001001
A118: 117 | B118: Большемуртинский муниципальный район | C118: Верх-Казанское | D118: 04610407 | E118: ООО "СТЭП" | F118: 2460225783 | G118: 246001001
A119: 118 | B119: Большемуртинский муниципальный район | C119: Еловское | D119: 04610410 | E119: ООО "Красноярская региональная энергетическая компания" | F119: 2466118202 | G119: 246001001
A120: 119 | B120: Большемуртинский муниципальный район | C120: Еловское | D120: 04610410 | E120: ООО "СТЭП" | F120: 2460225783 | G120: 246001001
A121: 120 | B121: Большемуртинский муниципальный район | C121: Ентаульское | D121: 04610413 | E121: ООО "Красноярская региональная энергетическая компания" | F121: 2466118202 | G121: 246001001
A122: 121 | B122: Большемуртинский муниципальный район | C122: Ентаульское | D122: 04610413 | E122: ООО "СТЭП" | F122: 2460225783 | G122: 246001001
A123: 122 | B123: Большемуртинский муниципальный район | C123: Межовское | D123: 04610416 | E123: ИП Хасанов | F123: 240800322914 | G123: отсутствует
A124: 123 | B124: Большемуртинский муниципальный район | C124: Межовское | D124: 04610416 | E124: ООО "Красноярская региональная энергетическая компания" | F124: 2466118202 | G124: 246001001
A125: 124 | B125: Большемуртинский муниципальный район | C125: Поселок Большая Мурта | D125: 04610151 | E125: ООО "Красноярская региональная энергетическая компания" | F125: 2466118202 | G125: 246001001
A126: 125 | B126: Большемуртинский муниципальный район | C126: Поселок Большая Мурта | D126: 04610151 | E126: ООО "Обслуживание коммунального комплекса" | F126: 2408005552 | G126: 240801001
A127: 126 | B127: Большемуртинский муниципальный район | C127: Поселок Большая Мурта | D127: 04610151 | E127: ООО "СТЭП" | F127: 2460225783 | G127: 246001001
A128: 127 | B128: Большемуртинский муниципальный район | C128: Раздольненское | D128: 04610428 | E128: ООО "Красноярская региональная энергетическая компания" | F128: 2466118202 | G128: 246001001
A129: 128 | B129: Большемуртинский муниципальный район | C129: Раздольненское | D129: 04610428 | E129: ООО "СТЭП" | F129: 2460225783 | G129: 246001001
A130: 129 | B130: Большемуртинский муниципальный район | C130: Российское | D130: 04610419 | E130: ООО "Красноярская региональная энергетическая компания" | F130: 2466118202 | G130: 246001001
A131: 130 | B131: Большемуртинский муниципальный район | C131: Российское | D131: 04610419 | E131: ООО "СТЭП" | F131: 2460225783 | G131: 246001001
A132: 131 | B132: Большемуртинский муниципальный район | C132: Таловское | D132: 04610422 | E132: ООО "Красноярская региональная энергетическая компания" | F132: 2466118202 | G132: 246001001
A133: 132 | B133: Большемуртинский муниципальный район | C133: Таловское | D133: 04610422 | E133: ООО "СТЭП" | F133: 2460225783 | G133: 246001001
A134: 133 | B134: Большемуртинский муниципальный район | C134: Юксеевское | D134: 04610425 | E134: ООО "Красноярская региональная энергетическая компания" | F134: 2466118202 | G134: 246001001
A135: 134 | B135: Большемуртинский муниципальный район | C135: Юксеевское | D135: 04610425 | E135: ООО "СТЭП" | F135: 2460225783 | G135: 246001001
A136: 135 | B136: Большемуртинский муниципальный район | C136: п Предивинск | D136: 04610155 | E136: ООО "Красноярская региональная энергетическая компания" | F136: 2466118202 | G136: 246001001
A137: 136 | B137: Большемуртинский муниципальный район | C137: п Предивинск | D137: 04610155 | E137: ООО "СТЭП" | F137: 2460225783 | G137: 246001001
A138: 137 | B138: Большеулуйский муниципальный район | C138: Большеулуйское | D138: 04611407 | E138: ОАО "Ачинский НПЗ ВНК" | F138: 2443000518 | G138: 244301001
A139: 138 | B139: Большеулуйский муниципальный район | C139: Большеулуйское | D139: 04611407 | E139: ООО "КоммунСтройСервис" | F139: 2409000116 | G139: 240901001
A140: 139 | B140: Большеулуйский муниципальный район | C140: Большеулуйское | D140: 04611407 | E140: ООО "Рубин" | F140: 2409700703 | G140: 240971001
A141: 140 | B141: Большеулуйский муниципальный район | C141: Большеулуйское | D141: 04611407 | E141: ООО "Улуйское" | F141: 2409700541 | G141: 240901001
A142: 141 | B142: Город Ачинск | C142: Город Ачинск | D142: 04703000 | E142: ГП Красноярского края "КрасАвиа" | F142: 8801010904 | G142: 241101001
A143: 142 | B143: Город Ачинск | C143: Город Ачинск | D143: 04703000 | E143: ЗАО "Промэнерго" | F143: 2443022857 | G143: 244301001
A144: 143 | B144: Город Ачинск | C144: Город Ачинск | D144: 04703000 | E144: ЗАО "СИБИРЬ АВИА СЕРВИС" | F144: 2466102668 | G144: 241101001
A145: 144 | B145: Город Ачинск | C145: Город Ачинск | D145: 04703000 | E145: КрД по тепловодоснабжению - СП ЦД по тепловодоснабжению -филиал ОАО "РЖД" | F145: 7708503727 | G145: 246645014
A146: 145 | B146: Город Ачинск | C146: Город Ачинск | D146: 04703000 | E146: МП "Ярцевские авиационные перевозки" | F146: 2447010940 | G146: 244701001
A147: 146 | B147: Город Ачинск | C147: Город Ачинск | D147: 04703000 | E147: МУП "Ачинские коммунальные системы" | F147: 2443031957 | G147: 244301001
A148: 147 | B148: Город Ачинск | C148: Город Ачинск | D148: 04703000 | E148: МУП "Ачинский транспорт" | F148: 2443033707 | G148: 244301001
A149: 148 | B149: Город Ачинск | C149: Город Ачинск | D149: 04703000 | E149: ОАО "Ачинская хлебная база № 17" | F149: 2443005481 | G149: 244301001
A150: 149 | B150: Город Ачинск | C150: Город Ачинск | D150: 04703000 | E150: ОАО "Русал Ачинск" | F150: 2443005570 | G150: 997550001
A151: 150 | B151: Город Ачинск | C151: Город Ачинск | D151: 04703000 | E151: ООО "Аэропорт "Ачинск" | F151: 2443027421 | G151: 244301001
A152: 151 | B152: Город Ачинск | C152: Город Ачинск | D152: 04703000 | E152: ООО "Аэропорт "Норильск" | F152: 245706174 | G152: 245701001
A153: 152 | B153: Город Ачинск | C153: Город Ачинск | D153: 04703000 | E153: ООО "Топливо-заправочная компания Енисей" | F153: 2411019700 | G153: 241101001
A154: 153 | B154: Город Ачинск | C154: Город Ачинск | D154: 04703000 | E154: ООО "ЭРА Терминал" | F154: 2411015448 | G154: 241101001
A155: 154 | B155: Город Ачинск | C155: Город Ачинск | D155: 04703000 | E155: ООО Керамзитовый завод | F155: 2443026756 | G155: 244301001
A156: 155 | B156: Город Ачинск | C156: Город Ачинск | D156: 04703000 | E156: Общество с ограниченной ответственностью "Аэропортовый комплекс "Шушенское" | F156: 2442011108 | G156: 244201001
A157: 156 | B157: Город Ачинск | C157: Город Ачинск | D157: 04703000 | E157: ФГУП "Туруханское авиапредприятие" | F157: 2437001665 | G157: 243701001
A158: 157 | B158: Город Боготол | C158: Город Боготол | D158: 04706000 | E158: КрД по тепловодоснабжению - СП ЦД по тепловодоснабжению -филиал ОАО "РЖД" | F158: 7708503727 | G158: 246645014
A159: 158 | B159: Город Боготол | C159: Город Боготол | D159: 04706000 | E159: ОАО «БТЭК» | F159: 2444303071 | G159: 244401001
A160: 159 | B160: Город Боготол | C160: Город Боготол | D160: 04706000 | E160: ООО "Водоканал" | F160: 2444000246 | G160: 244401001
A161: 160 | B161: Город Боготол | C161: Город Боготол | D161: 04706000 | E161: ООО "Красноярская региональная энергетическая компания" | F161: 2466118202 | G161: 246001001
A162: 161 | B162: Город Боготол | C162: Город Боготол | D162: 04706000 | E162: ООО «Теплоэнергетический комплекс» города Боготола | F162: 2444000486 | G162: 244401001
A163: 162 | B163: Город Бородино | C163: Город Бородино | D163: 04707000 | E163: ООО "Бородинский комплекс жилищно-коммунальных услуг" | F163: 2445002704 | G163: 244501001
A164: 163 | B164: Город Бородино | C164: Город Бородино | D164: 04707000 | E164: ООО "Бородинское Энергоуправление" | F164: 2445002253 | G164: 244501001
A165: 164 | B165: Город Бородино | C165: Город Бородино | D165: 04707000 | E165: ООО "Интегра" | F165: 2464111032 | G165: 246401001
A166: 165 | B166: Город Бородино | C166: Город Бородино | D166: 04707000 | E166: ООО "Строительная компания" | F166: 2452023938 | G166: 245201001
A167: 166 | B167: Город Бородино | C167: Город Бородино | D167: 04707000 | E167: Филиал ОАО «СУЭК-Красноярск» «Разрез Бородинский» | F167: 2466152267 | G167: 244502001
A168: 167 | B168: Город Дивногорск | C168: Город Дивногорск | D168: 04709000 | E168: МУП "ЭС" г.Дивногорск | F168: 2446001206 | G168: 244601001
A169: 168 | B169: Город Дивногорск | C169: Город Дивногорск | D169: 04709000 | E169: ОАО "Дивногорские тепловые сети" | F169: 2460237884 | G169: 246001001
A170: 169 | B170: Город Дивногорск | C170: Город Дивногорск | D170: 04709000 | E170: ОАО "Енисейская ТГК (ТГК-13)" | F170: 1901067718 | G170: 997450001
A171: 170 | B171: Город Дивногорск | C171: Город Дивногорск | D171: 04709000 | E171: ОАО "Красноярская ГЭС" | F171: 2446000322 | G171: 244601001
A172: 171 | B172: Город Дивногорск | C172: Город Дивногорск | D172: 04709000 | E172: ООО "Дивногорский водоканал" | F172: 2464076268 | G172: 246401001
A173: 172 | B173: Город Дивногорск | C173: Город Дивногорск | D173: 04709000 | E173: ООО "Коммунальные Технологии" | F173: 2446031176 | G173: 244601001
A174: 173 | B174: Город Дивногорск | C174: Город Дивногорск | D174: 04709000 | E174: ООО «Тепловая сбытовая компания плюс» | F174: 2446031539 | G174: 244601001
A175: 174 | B175: Город Енисейск | C175: Город Енисейск | D175: 04712000 | E175: МУП "Очистные сооружения" | F175: 2447011172 | G175: 244701001
A176: 175 | B176: Город Енисейск | C176: Город Енисейск | D176: 04712000 | E176: ФБУ ОИУ-2 ОУХД ГУФСИН России по Красноярскому краю | F176: 2447004802 | G176: 244701001
A177: 176 | B177: Город Канск | C177: Город Канск | D177: 04720000 | E177: КГБУСО "Канский психоневрологический интернат" | F177: 2450003647 | G177: 245001001
A178: 177 | B178: Город Канск | C178: Город Канск | D178: 04720000 | E178: КрД по тепловодоснабжению - СП ЦД по тепловодоснабжению -филиал ОАО "РЖД" | F178: 7708503727 | G178: 246645014
A179: 178 | B179: Город Канск | C179: Город Канск | D179: 04720000 | E179: МУП "Канский Электросетьсбыт" | F179: 2450017488 | G179: 245001001
A180: 179 | B180: Город Канск | C180: Город Канск | D180: 04720000 | E180: ОАО "Гортепло" | F180: 2450018770 | G180: 245001001
A181: 180 | B181: Город Канск | C181: Город Канск | D181: 04720000 | E181: ОАО "Енисейская ТГК (ТГК-13)" | F181: 1901067718 | G181: 997450001
A182: 181 | B182: Город Канск | C182: Город Канск | D182: 04720000 | E182: ОАО "Канская ТЭЦ" | F182: 2460237891 | G182: 246001001
A183: 182 | B183: Город Канск | C183: Город Канск | D183: 04720000 | E183: ОАО Красноярскнефтепродукт филиал Восточный | F183: 2460002949 | G183: 246001001
A184: 183 | B184: Город Канск | C184: Город Канск | D184: 04720000 | E184: ООО "Водоканал-сервис" | F184: 2450019630 | G184: 245001001
A185: 184 | B185: Город Канск | C185: Город Канск | D185: 04720000 | E185: ООО "Канские тепловые сети" | F185: 2450024460 | G185: 245001001
A186: 185 | B186: Город Канск | C186: Город Канск | D186: 04720000 | E186: ООО "Полигон" | F186: 2450020755 | G186: 245001001
A187: 186 | B187: Город Канск | C187: Город Канск | D187: 04720000 | E187: ООО Тепло-Сбыт-Сервис | F187: 2450012842 | G187: 245001001
A188: 187 | B188: Город Красноярск | C188: Город Красноярск | D188: 04701000 | E188: ЗАО Сибирский ЭНТЦ | F188: 5407103263 | G188: 246302001
A189: 188 | B189: Город Красноярск | C189: Город Красноярск | D189: 04701000 | E189: ЗАО "Красноярский ДОК" | F189: 2464004168 | G189: 246401001
A190: 189 | B190: Город Красноярск | C190: Город Красноярск | D190: 04701000 | E190: ЗАО "Красный Яр АО" | F190: 7701243572 | G190: 246101001
A191: 190 | B191: Город Красноярск | C191: Город Красноярск | D191: 04701000 | E191: ЗАО "Система" | F191: 4205173700 | G191: 420501001
A192: 191 | B192: Город Красноярск | C192: Город Красноярск | D192: 04701000 | E192: ЗАО "Флагман-инвест" | F192: 2465067548 | G192: 246401001
A193: 192 | B193: Город Красноярск | C193: Город Красноярск | D193: 04701000 | E193: ЗАО «РН-Энергонефть» | F193: 7706184465 | G193: 246543001
A194: 193 | B194: Город Красноярск | C194: Город Красноярск | D194: 04701000 | E194: ЗАО Лыжный стадион "Ветлужанка" | F194: 2463011331 | G194: 246301001
A195: 194 | B195: Город Красноярск | C195: Город Красноярск | D195: 04701000 | E195: ЗАО ПСК "Союз" | F195: 2464007521 | G195: 540501001
A196: 195 | B196: Город Красноярск | C196: Город Красноярск | D196: 04701000 | E196: ЗАО ТЦ "Красноярье" | F196: 2451000180 | G196: 245101001
A197: 196 | B197: Город Красноярск | C197: Город Красноярск | D197: 04701000 | E197: ИП Полынцев | F197: 246001293023 | G197: 246001001
A198: 197 | B198: Город Красноярск | C198: Город Красноярск | D198: 04701000 | E198: КрД по тепловодоснабжению - СП ЦД по тепловодоснабжению -филиал ОАО "РЖД" | F198: 7708503727 | G198: 246645014
A199: 198 | B199: Город Красноярск | C199: Город Красноярск | D199: 04701000 | E199: Красноярский научный центр СО РАН | F199: 2463002263 | G199: 246301001
A200: 199 | B200: Город Красноярск | C200: Город Красноярск | D200: 04701000 | E200: Красноярское отделение филиала "Сибирский" ОАО "Оборонэнергосбыт" | F200: 7704731218 | G200: 246645001
... 556 more rows

Sheet REESTR_FILTERED (hidden)
A1: № | B1: МР | C1: МО | D1: МО ОКТМО | E1: ОРГАНИЗАЦИЯ | F1: ИНН | G1: КПП | H1: ВИД ДЕЯТЕЛЬНОСТИ

Sheet REESTR_MO (hidden)
A1: МР | B1: МО | C1: МО_ОКТМО | D1: МР | E1: ИМЯ ДИАПАЗОНА
A2: Абанский муниципальный район | B2: Абанский муниципальный район | C2: 04601000 | D2: Абанский муниципальный район | E2: MO_LIST_2
A3: Абанский муниципальный район | B3: Абанское | C3: 04601151 | D3: Ачинский муниципальный район | E3: MO_LIST_3
A4: Ачинский муниципальный район | B4: Ачинский муниципальный район | C4: 04603000 | D4: Балахтинский муниципальный район | E4: MO_LIST_4
A5: Ачинский муниципальный район | B5: Белоярское | C5: 04603402 | D5: Березовский муниципальный район | E5: MO_LIST_5
A6: Ачинский муниципальный район | B6: Горное | C6: 04603407 | D6: Бирилюсский муниципальный район | E6: MO_LIST_6
A7: Ачинский муниципальный район | B7: Ключинское | C7: 04603410 | D7: Боготольский муниципальный район | E7: MO_LIST_7
A8: Ачинский муниципальный район | B8: Лапшихинское | C8: 04603413 | D8: Богучанский муниципальный район | E8: MO_LIST_8
A9: Ачинский муниципальный район | B9: Малиновское | C9: 04603414 | D9: Большемуртинский муниципальный район | E9: MO_LIST_9
A10: Ачинский муниципальный район | B10: Преображенское | C10: 04603404 | D10: Большеулуйский муниципальный район | E10: MO_LIST_10
A11: Ачинский муниципальный район | B11: Причулымское | C11: 04603419 | D11: Город Ачинск | E11: MO_LIST_11
A12: Ачинский муниципальный район | B12: Тарутинское | C12: 04603422 | D12: Город Боготол | E12: MO_LIST_12
A13: Ачинский муниципальный район | B13: Ястребовское | C13: 04603428 | D13: Город Бородино | E13: MO_LIST_13
A14: Балахтинский муниципальный район | B14: Балахтинский муниципальный район | C14: 04604000 | D14: Город Дивногорск | E14: MO_LIST_14
A15: Балахтинский муниципальный район | B15: Еловское | C15: 04604404 | D15: Город Енисейск | E15: MO_LIST_15
A16: Балахтинский муниципальный район | B16: Кожановское | C16: 04604405 | D16: Город Канск | E16: MO_LIST_16
A17: Балахтинский муниципальный район | B17: Огурское | C17: 04604407 | D17: Город Красноярск | E17: MO_LIST_17
A18: Балахтинский муниципальный район | B18: Приморское | C18: 04604413 | D18: Город Лесосибирск | E18: MO_LIST_18
A19: Балахтинский муниципальный район | B19: Тюльковское | C19: 04604419 | D19: Город Минусинск | E19: MO_LIST_19
A20: Балахтинский муниципальный район | B20: поселок Балахта | C20: 04604151 | D20: Город Назарово | E20: MO_LIST_20
A21: Березовский муниципальный район | B21: Бархатовское | C21: 04605402 | D21: Город Норильск | E21: MO_LIST_21
A22: Березовский муниципальный район | B22: Березовский муниципальный район | C22: 04605000 | D22: Город Шарыпово | E22: MO_LIST_22
A23: Березовский муниципальный район | B23: Вознесенское | C23: 04605405 | D23: Дзержинский район | E23: MO_LIST_23
A24: Березовский муниципальный район | B24: Есаульское | C24: 04605416 | D24: Емельяновский муниципальный район | E24: MO_LIST_24
A25: Березовский муниципальный район | B25: Зыковское | C25: 04605420 | D25: Енисейский муниципальный район | E25: MO_LIST_25
A26: Березовский муниципальный район | B26: Маганское | C26: 04605425 | D26: Ермаковский муниципальный район | E26: MO_LIST_26
A27: Березовский муниципальный район | B27: поселок Березовка | C27: 04605151 | D27: ЗАТО г. Зеленогорск | E27: MO_LIST_27
A28: Бирилюсский муниципальный район | B28: Бирилюсский муниципальный район | C28: 04606000 | D28: ЗАТО г.Железногорск | E28: MO_LIST_28
A29: Бирилюсский муниципальный район | B29: Малокетское | C29: 04606408 | D29: ЗАТО п.Солнечный | E29: MO_LIST_29
A30: Бирилюсский муниципальный район | B30: Новобирилюсское | C30: 04606416 | D30: Идринский муниципальный раойон | E30: MO_LIST_30
A31: Бирилюсский муниципальный район | B31: Поселок Рассвет | C31: 04606154 | D31: Иланский муниципальный район | E31: MO_LIST_31
A32: Бирилюсский муниципальный район | B32: Суриковское | C32: 04606426 | D32: Ирбейский муниципальный район | E32: MO_LIST_32
A33: Боготольский муниципальный район | B33: Александровское | C33: 04608402 | D33: Казачинский муниципальный район | E33: MO_LIST_33
A34: Боготольский муниципальный район | B34: Боготольский муниципальный район | C34: 04608000 | D34: Канский муниципальный район | E34: MO_LIST_34
A35: Боготольский муниципальный район | B35: Боготольское | C35: 04608404 | D35: Каратузский муниципальный район | E35: MO_LIST_35
A36: Боготольский муниципальный район | B36: Большекосульское | C36: 04608407 | D36: Кежемский муниципальный район | E36: MO_LIST_36
A37: Боготольский муниципальный район | B37: Вагинское | C37: 04608410 | D37: Козульский муниципальный район | E37: MO_LIST_37
A38: Боготольский муниципальный район | B38: Краснозаводское | C38: 04608413 | D38: Краснотуранский муниципальный район | E38: MO_LIST_38
A39: Боготольский муниципальный район | B39: Критовское | C39: 04608416 | D39: Курагинский муниципальный район | E39: MO_LIST_39
A40: Боготольский муниципальный район | B40: Чайковское | C40: 04608419 | D40: Манский муниципальный район | E40: MO_LIST_40
A41: Боготольский муниципальный район | B41: Юрьевское | C41: 04608422 | D41: Минусинский муниципальный район | E41: MO_LIST_41
A42: Богучанский муниципальный район | B42: Ангарское | C42: 04609402 | D42: Мотыгинский муниципальный район | E42: MO_LIST_42
A43: Богучанский муниципальный район | B43: Артюгинское | C43: 04609404 | D43: Назаровский муниципальный район | E43: MO_LIST_43
A44: Богучанский муниципальный район | B44: Белякинское | C44: 04609407 | D44: Нижнеингашский муниципальный район | E44: MO_LIST_44
A45: Богучанский муниципальный район | B45: Богучанский муниципальный район | C45: 04609000 | D45: Новоселовский муниципальный район | E45: MO_LIST_45
A46: Богучанский муниципальный район | B46: Богучанское | C46: 04609410 | D46: Партизанский муниципальный район | E46: MO_LIST_46
A47: Богучанский муниципальный район | B47: Говорковское | C47: 04609413 | D47: Пировский муниципальный район | E47: MO_LIST_47
A48: Богучанский муниципальный район | B48: Красногорьевское | C48: 04609418 | D48: Поселок Кедровый | E48: MO_LIST_48
A49: Богучанский муниципальный район | B49: Манзенское | C49: 04609419 | D49: Рыбинский муниципальный район | E49: MO_LIST_49
A50: Богучанский муниципальный район | B50: Невонское | C50: 04609422 | D50: Саянский муниципальный район | E50: MO_LIST_50
A51: Богучанский муниципальный район | B51: Нижнетерянское | C51: 04609424 | D51: Северо-Енисейский муниципальный район | E51: MO_LIST_51
A52: Богучанский муниципальный район | B52: Новохайское | C52: 04609423 | D52: Сухобузимский муниципальный район | E52: MO_LIST_52
A53: Богучанский муниципальный район | B53: Октябрьское | C53: 04609445 | D53: Таймырский (Долгано-Ненецкий) муниципальный район | E53: MO_LIST_53
A54: Богучанский муниципальный район | B54: Осиновомысское | C54: 04609425 | D54: Тасеевский муниципальный район | E54: MO_LIST_54
A55: Богучанский муниципальный район | B55: Пинчугское | C55: 04609428 | D55: Туруханский муниципальный район | E55: MO_LIST_55
A56: Богучанский муниципальный район | B56: Таежнинское | C56: 04609430 | D56: Тюхтетский муниципальный район | E56: MO_LIST_56
A57: Богучанский муниципальный район | B57: Такучетское | C57: 04609431 | D57: Ужурский муниципальный район | E57: MO_LIST_57
A58: Богучанский муниципальный район | B58: Хребтовское | C58: 04609433 | D58: Уярский муниципальный район | E58: MO_LIST_58
A59: Богучанский муниципальный район | B59: Чуноярское | C59: 04609434 | D59: Шарыпово | E59: MO_LIST_59
A60: Богучанский муниципальный район | B60: Шиверское | C60: 04609440 | D60: Шарыповский муниципальный район | E60: MO_LIST_60
A61: Большемуртинский муниципальный район | B61: Айтатское | C61: 04610402 | D61: Шушенский муниципальный район | E61: MO_LIST_61
A62: Большемуртинский муниципальный район | B62: Бартатское | C62: 04610404 | D62: Эвенкийский муниципальный район | E62: MO_LIST_62
A63: Большемуртинский муниципальный район | B63: Большемуртинский муниципальный район | C63: 04610000 | D63: г. Абакан | E63: MO_LIST_63
A64: Большемуртинский муниципальный район | B64: Верх-Казанское | C64: 04610407 | D64: город Сосновоборск | E64: MO_LIST_64
A65: Большемуртинский муниципальный район | B65: Еловское | C65: 04610410
A66: Большемуртинский муниципальный район | B66: Ентаульское | C66: 04610413
A67: Большемуртинский муниципальный район | B67: Межовское | C67: 04610416
A68: Большемуртинский муниципальный район | B68: Поселок Большая Мурта | C68: 04610151
A69: Большемуртинский муниципальный район | B69: Раздольненское | C69: 04610428
A70: Большемуртинский муниципальный район | B70: Российское | C70: 04610419
A71: Большемуртинский муниципальный район | B71: Таловское | C71: 04610422
A72: Большемуртинский муниципальный район | B72: Юксеевское | C72: 04610425
A73: Большемуртинский муниципальный район | B73: п Предивинск | C73: 04610155
A74: Большеулуйский муниципальный район | B74: Большеулуйский муниципальный район | C74: 04611000
A75: Большеулуйский муниципальный район | B75: Большеулуйское | C75: 04611407
A76: Большеулуйский муниципальный район | B76: Кытатское | C76: 04611419
A77: Город Ачинск | B77: Город Ачинск | C77: 04703000
A78: Город Боготол | B78: Город Боготол | C78: 04706000
A79: Город Бородино | B79: Город Бородино | C79: 04707000
A80: Город Дивногорск | B80: Город Дивногорск | C80: 04709000
A81: Город Енисейск | B81: Город Енисейск | C81: 04712000
A82: Город Канск | B82: Город Канск | C82: 04720000
A83: Город Красноярск | B83: Город Красноярск | C83: 04701000
A84: Город Лесосибирск | B84: Город Лесосибирск | C84: 04722000
A85: Город Минусинск | B85: Город Минусинск | C85: 04723000
A86: Город Назарово | B86: Город Назарово | C86: 04726000
A87: Город Норильск | B87: Город Норильск | C87: 04729000
A88: Город Шарыпово | B88: Город Шарыпово | C88: 04740 000
A89: Дзержинский район | B89: Дзержинский район | C89: 04613000
A90: Дзержинский район | B90: Дзержинское | C90: 04613410
A91: Дзержинский район | B91: Михайловское | C91: 04613419
A92: Емельяновский муниципальный район | B92: Еловское | C92: 04614413
A93: Емельяновский муниципальный район | B93: Емельяновский муниципальный район | C93: 04614000
A94: Емельяновский муниципальный район | B94: Зеледеевское | C94: 04614418
A95: Емельяновский муниципальный район | B95: Мининское | C95: 04614428
A96: Емельяновский муниципальный район | B96: Поселок Емельяново | C96: 04614151
A97: Емельяновский муниципальный район | B97: Солонцовское | C97: 04614437
A98: Емельяновский муниципальный район | B98: Тальское | C98: 04614440
A99: Емельяновский муниципальный район | B99: Устюгское | C99: 04614443
A100: Емельяновский муниципальный район | B100: Частоостровское | C100: 04614446
A101: Емельяновский муниципальный район | B101: Шуваевское | C101: 04614449
A102: Емельяновский муниципальный район | B102: Элитовское | C102: 04614404
A103: Енисейский муниципальный район | B103: Абалаковское | C103: 04615402
A104: Енисейский муниципальный район | B104: Верхнепашинское | C104: 04615407
A105: Енисейский муниципальный район | B105: Высокогорское | C105: 04615408
A106: Енисейский муниципальный район | B106: Городищенское | C106: 04615410
A107: Енисейский муниципальный район | B107: Енисейский муниципальный район | C107: 04615000
A108: Енисейский муниципальный район | B108: Епишинское | C108: 04615409
A109: Енисейский муниципальный район | B109: Железнодорожное | C109: 04615411
A110: Енисейский муниципальный район | B110: Кривлякское | C110: 04615412
A111: Енисейский муниципальный район | B111: Луговатское | C111: 04615416
A112: Енисейский муниципальный район | B112: Майское | C112: 04615418
A113: Енисейский муниципальный район | B113: Малобельское | C113: 04615421
A114: Енисейский муниципальный район | B114: Новогородокское | C114: 04615434
A115: Енисейский муниципальный район | B115: Новокаргинское | C115: 04615437
A116: Енисейский муниципальный район | B116: Новоназимовское | C116: 04615425
A117: Енисейский муниципальный район | B117: Озерновское | C117: 04615439
A118: Енисейский муниципальный район | B118: Плотбищенское | C118: 04615440
A119: Енисейский муниципальный район | B119: Погодаевское | C119: 04615441
A120: Енисейский муниципальный район | B120: Подгорновское | C120: 04615443
A121: Енисейский муниципальный район | B121: Поселок Подтесово | C121: 04615155
A122: Енисейский муниципальный район | B122: Потаповское | C122: 04615446
A123: Енисейский муниципальный район | B123: Усть-Кемское | C123: 04615452
A124: Енисейский муниципальный район | B124: Усть-Питское | C124: 04615455
A125: Енисейский муниципальный район | B125: Чалбышевское | C125: 04615456
A126: Енисейский муниципальный район | B126: Шапкинское | C126: 04615457
A127: Енисейский муниципальный район | B127: Ярцевское | C127: 04615458
A128: Ермаковский муниципальный район | B128: Верхнеусинское | C128: 04616404
A129: Ермаковский муниципальный район | B129: Григорьевское | C129: 04616407
A130: Ермаковский муниципальный район | B130: Ермаковский муниципальный район | C130: 04616000
A131: Ермаковский муниципальный район | B131: Ермаковское | C131: 04616410
A132: Ермаковский муниципальный район | B132: Ивановское | C132: 04616414
A133: Ермаковский муниципальный район | B133: Мигнинское | C133: 04616416
A134: Ермаковский муниципальный район | B134: Нижнесуэтукское | C134: 04616419
A135: Ермаковский муниципальный район | B135: Новополтавское | C135: 04616422
A136: Ермаковский муниципальный район | B136: Ойское | C136: 04616428
A137: Ермаковский муниципальный район | B137: Разъезженское | C137: 04616425
A138: Ермаковский муниципальный район | B138: Салбинское | C138: 04616429
A139: Ермаковский муниципальный район | B139: Семенниковское | C139: 04616431
A140: Ермаковский муниципальный район | B140: Танзыбейское | C140: 04616434
A141: ЗАТО г. Зеленогорск | B141: ЗАТО г. Зеленогорск | C141: 04737000
A142: ЗАТО г.Железногорск | B142: ЗАТО г.Железногорск | C142: 04735000
A143: ЗАТО п.Солнечный | B143: ЗАТО п.Солнечный | C143: 04780000
A144: Идринский муниципальный раойон | B144: Идринский муниципальный раойон | C144: 04617000
A145: Идринский муниципальный раойон | B145: Идринское | C145: 04617422
A146: Иланский муниципальный район | B146: Ельниковское | C146: 04618404
A147: Иланский муниципальный район | B147: Иланский муниципальный район | C147: 04618000
A148: Иланский муниципальный район | B148: Карапсельское | C148: 04618407
A149: Иланский муниципальный район | B149: Новониколаевское | C149: 04618416
A150: Иланский муниципальный район | B150: Южно-Александровское | C150: 04618425
A151: Иланский муниципальный район | B151: г. Иланский | C151: 04618101
A152: Ирбейский муниципальный район | B152: Благовещенское | C152: 04619404
A153: Ирбейский муниципальный район | B153: Верхнеуринское | C153: 04619407
A154: Ирбейский муниципальный район | B154: Ивановское | C154: 04619410
A155: Ирбейский муниципальный район | B155: Изумрудновское | C155: 04619411
A156: Ирбейский муниципальный район | B156: Ирбейский муниципальный район | C156: 04619000
A157: Ирбейский муниципальный район | B157: Ирбейское | C157: 04619413
A158: Ирбейский муниципальный район | B158: Мельничное | C158: 04619419
A159: Ирбейский муниципальный район | B159: Сергеевское | C159: 04619425
A160: Ирбейский муниципальный район | B160: Степановское | C160: 04619429
A161: Ирбейский муниципальный район | B161: Тальское | C161: 04619431
A162: Ирбейский муниципальный район | B162: Тумаковское | C162: 04619443
A163: Ирбейский муниципальный район | B163: Успенское | C163: 04619434
A164: Ирбейский муниципальный район | B164: Усть-Каначульское | C164: 04619437
A165: Ирбейский муниципальный район | B165: Усть-Ярульское | C165: 04619440
A166: Ирбейский муниципальный район | B166: Чухломинское | C166: 04619450
A167: Ирбейский муниципальный район | B167: Юдинское | C167: 04619416
A168: Казачинский муниципальный район | B168: Казачинский муниципальный район | C168: 04620000
A169: Казачинский муниципальный район | B169: Казачинское | C169: 04620413
A170: Канский муниципальный район | B170: Анцирское | C170: 04621404
A171: Канский муниципальный район | B171: Астафьевское | C171: 04621407
A172: Канский муниципальный район | B172: Большеуринское | C172: 04621410
A173: Канский муниципальный район | B173: Браженское | C173: 04621413
A174: Канский муниципальный район | B174: Верх-Амонашенское | C174: 04621416
A175: Канский муниципальный район | B175: Георгиевское | C175: 04621419
A176: Канский муниципальный район | B176: Канский муниципальный район | C176: 04621000
A177: Канский муниципальный район | B177: Мокрушинское | C177: 04621425
A178: Канский муниципальный район | B178: Рудянское | C178: 04621431
A179: Канский муниципальный район | B179: Сотниковское | C179: 04621434
A180: Канский муниципальный район | B180: Таеженское | C180: 04621436
A181: Канский муниципальный район | B181: Терское | C181: 04621437
A182: Канский муниципальный район | B182: Филимоновское | C182: 04621438
A183: Канский муниципальный район | B183: Чечеульское | C183: 04621440
A184: Каратузский муниципальный район | B184: Верхнекужебарское | C184: 04622404
A185: Каратузский муниципальный район | B185: Каратузский муниципальный район | C185: 04622000
A186: Каратузский муниципальный район | B186: Каратузское | C186: 04622407
A187: Каратузский муниципальный район | B187: Моторское | C187: 04622413
A188: Каратузский муниципальный район | B188: Нижнекужебарское | C188: 04622416
A189: Каратузский муниципальный район | B189: Таскинское | C189: 04622428
A190: Каратузский муниципальный район | B190: Уджейское | C190: 04622432
A191: Каратузский муниципальный район | B191: Черемушинское | C191: 04622434
A192: Кежемский муниципальный район | B192: Город Кодинск | C192: 04624101
A193: Кежемский муниципальный район | B193: Заледеевское | C193: 04624403
A194: Кежемский муниципальный район | B194: Имбинское | C194: 04624406
A195: Кежемский муниципальный район | B195: Кежемский муниципальный район | C195: 04624000
A196: Кежемский муниципальный район | B196: Кежемское | C196: 04624404
A197: Кежемский муниципальный район | B197: Недокурское | C197: 04624407
A198: Кежемский муниципальный район | B198: Пановское | C198: 04624410
A199: Кежемский муниципальный район | B199: Тагарское | C199: 04624412
A200: Кежемский муниципальный район | B200: Таежинское | C200: 04624416
... 217 more rows

Sheet modHyperlink (hidden)

Sheet modChange (hidden)

Sheet modPROV (hidden)

Sheet modTitleSheetHeaders (hidden)

Sheet modServiceModule (hidden)

Sheet modCommandButton (hidden)

Sheet modReestr (hidden)

Sheet modClassifierValidate (hidden)

Sheet modWindowClipboard (hidden)

Sheet modInfo (hidden)

Sheet modfrmReestr (hidden)

Sheet modfrmDateChoose (hidden)

Sheet modDblClick (hidden)

Sheet modUpdTemplMain (hidden)

Sheet modRegionSelectSub (hidden)

Sheet modThisWorkbook (hidden)

Sheet modReestrMO (hidden)

Sheet modSheetMain01 (hidden)

Sheet modSheetMain02 (hidden)

Sheet modSheetMain03 (hidden)

Sheet modSheetMain04 (hidden)

Sheet modSheetMain05 (hidden)

Sheet modSheetMain06 (hidden)

Sheet Паспорт (hidden)
AV1: Код диапазона: | AW1: Название диапазона: | AX1: Сфера регулирования: | AY1: Подсфера: | AZ1: Тип информации в шаблоне: | BA1: Состояние шаблона: | BB1: Периодичность: | BC1: "Геотип" шаблона: | BD1: Тип шаблона: | BE1: Заказчик:
AV2: ps_sr | AW2: Сфера регулирования: | AX2: Не определено | AY2: Не определено | AZ2: Не определено | BA2: Не определено | BB2: Не определено | BC2: Не определено | BD2: Не определено | BE2: Не определено
AV3: ps_ti | AW3: Тип информации в шаблоне: | AX3: NETS | AY3: водоотведение - очистка | AZ3: Статистический | BA3: Проект | BB3: Единовременный | BC3: Региональный шаблон | BD3: Атомарный | BE3: РЭК
D4: Паспорт к шаблону | AV4: ps_ssh | AW4: Состояние шаблона: | AX4: Аэропорты | AY4: водоотведение - передача | AZ4: Расчетный | BA4: Утвержден | BB4: Ежемесячный | BC4: Муниципальный шаблон | BD4: Сводный | BE4: ФСТ
AV5: ps_p | AW5: Периодичность: | AX5: Газ | AY5: водоотведение - прием | AZ5: Обосновывающие материалы | BB5: Ежеквартальный | BC5: Шаблон от организации | BE5: Экспертная организация
D6: 1. Общие сведения | AV6: ps_geo | AW6: "Геотип" шаблона: | AX6: Железные дороги | AY6: водоснабжение - очистка | BB6: Ежегодный
D7: 1.1 | E7: Код | AV7: ps_tsh | AW7: Тип шаблона: | AX7: ЖКХ | AY7: водоснабжение - передача
D8: 1.2 | E8: Краткое наименование | AV8: ps_psr | AW8: Подсфера: | AX8: Медицина | AY8: водоснабжение - подъем
D9: 1.3 | E9: Полное наименование | AV9: ps_z | AW9: Заказчик: | AX9: Порты | AY9: выработка ТС
D10: 1.4 | E10: Сфера регулирования | AX10: Связь | AY10: выработка ТС в режиме комбинированной выработки
D11: 1.5 | E11: Подсфера | AX11: Транспорт | AY11: выработка электрической энергии
D12: 1.6 | E12: Состояние шаблона (Утвержден/Проект) | AX12: Электроэнергетика | AY12: выработка+передача+сбыт ТС
D13: 1.7 | E13: Заказчик | AY13: передача ТС
D14: 1.8 | E14: Отчитывается | AY14: передача ЭЭ
D15: 1.9 | E15: Тип шаблона | G15: Если шаблон сводный, необходимо указать код атомарного шаблона для него: | AY15: сбыт ТС
D16: 1.10 | E16: Текущая версия | AY16: сбыт ЭЭ
AY17: ТБО
D18: 2. Организационные
D19: 2.1 | E19: Тип информации в шаблоне
D20: 2.2 | E20: Ответственный регулятор (от заказчика)
D21: 2.3 | E21: Ответственный специалист (от СМА)
D22: 2.4 | E22: Ответственный программист (от СМА)
D23: 2.5 | E23: Ответственные за сбор данных (от СМА)
D24: 2.6 | E24: Ответственные за сбор данных (от заказчика)
D26: 3. Законодательство (методики, приказы, постановления ...)
C27: first | D27: 3.1 | E27: Документ1
C28: end | D28: Добавить документ
D30: 4. Периодичность
D31: 4.1 | E31: Периодичность
E32: Мониторинги(прошедшие и плановые) | F32: Дата начала | G32: Дата окончания | H32: Согласно (приказ, постановление, письмо)
C33: first | D33: 4.2.1 | E33: Мониторинг1
C34: end | D34: Добавить мониторинг
D36: 5. Состав шаблона
E37: Лист | F37: Последняя дата изменений эскиза | G37: Состояние листа | H37: Наименование витрины для листа | I37: Комментарии
C38: first | D38: 5.1.1
C39: Удалить | D39: 5.1.2
C40: Удалить | D40: 5.1.3
C41: Удалить | D41: 5.1.4
C42: Удалить | D42: 5.1.5
C43: Удалить | D43: 5.1.6
C44: Удалить | D44: 5.1.7
C45: Удалить | D45: 5.1.8
C46: Удалить | D46: 5.1.9
C47: Удалить | D47: 5.1.10
C48: Удалить | D48: 5.1.11
C49: Удалить | D49: 5.1.12
C50: Удалить | D50: 5.1.13
C51: Удалить | D51: 5.1.14
C52: Удалить | D52: 5.1.15
C53: Удалить | D53: 5.1.16
C54: Удалить | D54: 5.1.17
C55: end | D55: Добавить лист
D57: 6. Сроки и даты
D58: 6.1.1 | E58: Даты получения последних эскизов, от экспертов
D59: 6.1.2 | E59: Даты отправки шаблона на проверку
D60: 6.1.3 | E60: Предполагаемый срок сдачи шаблона в эксплуатацию
D62: 7. Версии
E63: Версия | F63: Отличия от предыдущей
C64: first | D64: 7.1
C65: end | D65: Добавить версию
D67: 8. Дополнительно
D68: 8.1 | E68: Аналогичные("похожие") шаблоны
D69: 8.2 | E69: Особенности шаблона
D70: 8.3 | E70: Модуль на основе данного шаблона
D71: 8.4 | E71: Процедуры загрузки данных в витрины
